Cogmind - Beta 11.1 @@@ ROGUE MODE // 2022.07.23 @ 16:02:25 Player: Benkyo Result: Escaped singularity! Performance ------------- Evolutions (9) 4500 Regions Visited (36) 7200 Robots Destroyed (382) 1910 Value Destroyed (20734) 20734 Prototype IDs (300) 6000 Alien Tech Used (15) 3000 Bonus (52299) 52299 TOTAL SCORE: 95643 Bonus ------- High Alert Combat Kills 2002 Follower Combat Kills 1109 Network Hubs Disabled 400 Met Data Miner 300 Destroyed Z-Imprinter 1000 Triggered Deep Caves Wall 500 Exposed GOLEM Chamber 500 Met Zhirov 300 Built Enhanced Grunts 300 A7 Reached Mainframe 300 Used Core Reset Matrix 3000 Integrated Exoskeleton 5000 Destroyed MAIN.C Guards 500 Met MAIN.C 5000 Destroyed MAIN.C Shell 5000 Destroyed MAIN.C 10000 Met Architect 300 Destroyed A8 300 Destroyed A6 400 Destroyed Architect 15000 Win 3000 Friendly Fire -1912 Cogmind --------- Core Integrity 193/1600 Matter 415/425 Energy 332/340 System Corruption 0% Temperature Cool (0) Movement Walking (30) Location Near Former Tau Ceti IV Parts ------- > --- POWER (1) -------- Zero-point Reactor > --- PROPULSION (3) --- Sigix Exoskeleton > --- UTILITY (3) ------ Experimental Targeting Computer AEGIS Remote Shield > --- WEAPON (4) ------- Sigix Sheargun Sigix Sheargun Sigix Sheargun Sigix Sheargun > --- INVENTORY (5) ---- Experimental Energy Well (600) Experimental Energy Well (600) Experimental Core Analyzer Core Cannon Peak State ------------ > --- POWER ------------ Particle Reactor Vortex Chain Reactor > --- PROPULSION ------- Centrium Heavy Treads Biometal Heavy Treads Advanced Heavy Siege Treads > --- UTILITY ---------- High-capacity Storage Unit Assembled Biocell Array Experimental Sensor Array Advanced Signal Interpreter Advanced Terrain Scan Processor Assembled Combat Suite Assembled Alloy Armor Phase Armor Microwarp Drive > --- WEAPON ----------- Null Cannon Core Cannon > --- INVENTORY -------- 2N-1CE's Frost Array Experimental Energy Well Zionite Biocell Zionite Biocell Quantum Capacitor Centrium Heavy Armor Plating Experimental Force Field Transdimensional Reconstructor High-powered Transdimensional Reconstructor Core Regenerator Subatomic Replicator Sigix Sheargun Sigix Sheargun Sigix Broadsword CR-A16's Behemoth Slayer [Rating: 242] Favorites ----------- Power Assembled Flux Generator Engine Improved Deuterium Engine Power Core Light Nuclear Core Reactor Assembled Flux Generator Propulsion Assembled Alloy Leg Treads Light Treads Leg Assembled Alloy Leg Wheel Armored Huge Wheel Hover Unit Zionite Glidesys I Utility High-capacity Storage Unit Device Experimental Sensor Array Storage High-capacity Storage Unit Processor Improved Signal Interpreter Hackware Hacking Suite Protection Assembled Alloy Armor Artifact Phase Armor Weapon Assembled Focal Cannon Energy Gun Sigix Sheargun Energy Cannon Assembled Focal Cannon Ballistic Gun Enhanced Autogun Ballistic Cannon Advanced Assault Cannon Launcher Mini Grenade Launcher Impact Weapon Power Maul Slashing Weapon Sigix Broadsword Piercing Weapon CR-A16's Behemoth Slayer Special Melee Weapon Dirty Datajack Build | -11 -10 -10 -10 -9 -8 -7 -7 -7 -7 -6 -6 -6 -6 -6 -6 -6 -6 -5 -5 -5 -5 -5 -5 -4 -4 -4 -4 -3 -3 -3 -2 -2 -2 -1 -1 -1 ------- Run | Scr Mat Min Exi Min Mat Fac Low Low Dat Pro Fac Was Fac Low Low Zio Dee Pro Fac Ext Cet Arc Hub Fac Upp Upp Zhi Pro Res Tes Res Qua Sec Acc Com Ac0 Slots Evolved 18 | . . . . . 4 2 . . . . 2 . . . . . . . 2 . . . . 2 . . . . 2 . 2 . . 2 . . Power 2 | . . . . . . . . . . . 1 . . . . . . . . . . . . . . . . . . . 1 . . . . . Propulsion 4 | . . . . . . . . . . . . . . . . . . . 1 . . . . 1 . . . . 2 . . . . . . . Utility 9 | . . . . . 4 2 . . . . 1 . . . . . . . 1 . . . . . . . . . . . 1 . . . . . Weapon 3 | . . . . . . . . . . . . . . . . . . . . . . . . 1 . . . . . . . . . 2 . . Parts Attached 552 | 7 11 . . 1 41 21 10 9 2 6 37 2 9 14 4 11 37 14 8 18 6 6 2 4 15 4 5 15 16 24 22 46 73 11 41 . Power 24 | 1 1 . . . 3 . 2 . . . 4 . . 1 . . 2 . . . . . . . . . . . . . 1 2 4 . 3 . Engine 9 | 1 1 . . . 1 . 2 . . . 3 . . 1 . . . . . . . . . . . . . . . . . . . . . . Core 3 | . . . . . 2 . . . . . 1 . . . . . . . . . . . . . . . . . . . . . . . . . Reactor 12 | . . . . . . . . . . . . . . . . . 2 . . . . . . . . . . . . . 1 2 4 . 3 . Propulsion 38 | 2 2 . . . 8 . . 4 . 1 2 . . . . 1 6 . 2 . . . . 1 . . . . 3 . 2 4 . . . . Treads 24 | 2 2 . . . 7 . . 2 . 1 . . . . . . . . 1 . . . . . . . . . 3 . 2 4 . . . . Leg 3 | . . . . . . . . . . . . . . . . . 1 . 1 . . . . 1 . . . . . . . . . . . . Wheel 9 | . . . . . 1 . . 2 . . 2 . . . . 1 3 . . . . . . . . . . . . . . . . . . . Hover 2 | . . . . . . . . . . . . . . . . . 2 . . . . . . . . . . . . . . . . . . . Flight . | . . . . . . . . . . . . . . . . . . . . . . . . . . . . . . . . . . . . . Utility 384 | 2 5 . . 1 23 11 6 5 . 2 20 . 7 6 2 6 18 13 6 18 6 6 2 3 12 4 4 14 13 23 19 35 60 5 27 . Device 223 | 1 . . . . 7 8 4 3 . 2 16 . 4 5 1 3 8 5 3 9 2 2 2 1 5 2 1 7 6 11 10 21 51 3 20 . Storage 15 | 1 3 . . . 2 . . . . . . . . . . . 3 . . . . . . . . . 1 . . 1 . . 3 . 1 . Processor 20 | . . . . . 3 . . . . . 2 . 2 . . . 1 . 1 . . . . . 1 . . . . . 1 1 3 1 4 . Hackware 13 | . . . . . 6 1 . . . . . . 1 . . . . . . . . . . . . . . . 1 2 . . 1 1 . . Protection 109 | . 2 . . 1 5 2 2 2 . . 2 . . 1 1 3 6 8 2 9 4 4 . 2 6 2 2 7 6 9 8 11 . . 2 . Artifact 4 | . . . . . . . . . . . . . . . . . . . . . . . . . . . . . . . . 2 2 . . . Weapon 106 | 2 3 . . . 7 10 2 . 2 3 11 2 2 7 2 4 11 1 . . . . . . 3 . 1 1 . 1 . 5 9 6 11 . Energy Gun 18 | . . . . . . . . . . . 1 . . . . . 4 . . . . . . . . . . . . . . . . 5 8 . Energy Cannon 21 | . . . . . . . . . . 1 2 . 1 4 1 3 3 . . . . . . . . . . . . 1 . . 3 1 1 . Ballistic Gun 23 | 2 3 . . . 6 1 1 . 2 1 6 . 1 . . . . . . . . . . . . . . . . . . . . . . . Ballistic Cannon 7 | . . . . . . 5 . . . . . . . . . . 1 . . . . . . . . . . . . . . 1 . . . . Launcher 14 | . . . . . 1 . . . . 1 1 2 . 3 1 . 2 . . . . . . . 1 . . 1 . . . . . . 1 . Special Weapon . | . . . . . . . . . . . . . . . . . . . . . . . . . . . . . . . . . . . . . Impact Weapon 8 | . . . . . . 4 1 . . . 1 . . . . 1 . . . . . . . . . . . . . . . 1 . . . . Slashing Weapon 8 | . . . . . . . . . . . . . . . . . 1 . . . . . . . . . . . . . . 3 4 . . . Piercing Weapon 6 | . . . . . . . . . . . . . . . . . . 1 . . . . . . 1 . 1 . . . . . 2 . 1 . Special Melee Weapon 1 | . . . . . . . . . . . . . . . . . . . . . . . . . 1 . . . . . . . . . . . Unidentified Prototypes 49 | . . . . . . . . . . . . . . . . 2 14 . . . 1 . . . . . 2 . . 2 . 13 7 1 7 . Parts Lost 14 | . . . . . 3 . . 1 . . 3 . . 2 . . 2 3 . . . . . . . . . . . . . . . . . . Power 4 | . . . . . . . . . . . 2 . . 1 . . 1 . . . . . . . . . . . . . . . . . . . Propulsion . | . . . . . . . . . . . . . . . . . . . . . . . . . . . . . . . . . . . . . Utility 9 | . . . . . 2 . . 1 . . 1 . . 1 . . 1 3 . . . . . . . . . . . . . . . . . . Weapon 1 | . . . . . 1 . . . . . . . . . . . . . . . . . . . . . . . . . . . . . . . Highest Loss Streak 3 | . . . . . 1 . . 1 . . 3 . . 1 . . 1 2 . . . . . . . . . . . . . . . . . . To Critical Strikes 1 | . . . . . . . . . . . 1 . . . . . . . . . . . . . . . . . . . . . . . . . Average Slot Usage (%) 86 | . 99 100 100 100 99 96 92 91 77 92 84 86 86 85 86 83 78 82 84 88 92 87 82 84 83 83 75 88 82 78 81 73 68 74 80 80 Engine 5 | . 14 14 14 14 8 7 7 7 7 7 9 13 13 12 13 13 5 . . . . . . . . . . . . . . . . . . . Reactor 3 | . . . . . . . . . . . . . . . . . 5 6 5 5 5 5 5 5 5 4 5 5 4 4 7 7 8 9 9 9 Treads 7 | . 27 28 28 28 17 7 7 7 7 7 . . . . . . . . 1 . . . . . . . . . 6 14 13 12 12 . . . Leg 5 | . . . . . . . . . . . . . . . . . . 7 11 17 17 17 17 21 21 20 21 21 14 . . . . 9 9 9 Wheel 2 | . . . . . . 7 7 6 7 7 5 6 6 6 6 6 5 2 . . . . . . . . . . . . . . . . . . Device 15 | . . . . . 10 17 20 22 23 23 28 26 26 26 25 20 16 21 22 16 14 12 17 14 15 14 14 15 16 15 14 17 12 5 8 9 Storage 8 | . 14 14 14 14 9 7 7 7 7 7 6 6 6 6 6 6 7 12 11 11 11 11 11 10 10 10 10 10 9 9 8 8 7 . . . Processor 6 | . . . . . 8 11 7 7 7 7 8 13 13 13 13 11 5 6 5 5 5 5 5 5 4 5 5 5 4 4 6 8 7 6 17 17 Hackware 1 | . . . . . 12 12 3 . . . . . . . . . . . . . . . . . . . . . . 3 5 . . 8 . . Protection 11 | . 13 14 14 14 12 7 14 15 15 15 7 6 6 5 6 11 16 10 11 17 24 21 11 10 10 10 12 14 10 10 10 5 3 . . . Energy Gun 1 | . . . . . . . . . . . . . . . . . 3 . . . . . . . . . . . . . . . . 35 35 36 Energy Cannon 6 | . . . . . . . . . . 4 4 . 6 12 7 9 8 12 11 11 11 11 11 15 14 14 3 14 14 14 13 5 4 . . . Ballistic Gun 6 | . 27 28 28 28 17 8 14 15 . 10 7 . 5 . . . . . . . . . . . . . . . . . . . . . . . Naked Turns . | . . . . . . . . . . . . . . . . . . . . . . . . . . . . . . . . . . . . . Heaviest Build 191 | 14 54 54 54 58 108 83 93 87 87 90 104 88 100 108 111 130 130 129 135 141 147 147 135 156 156 156 149 149 149 149 170 180 191 58 60 58 Greatest Support 245 | 40 40 40 40 40 40 12 12 12 12 12 28 28 28 28 28 28 48 60 80 80 80 80 80 100 100 80 80 80 230 230 230 245 235 60 60 60 Greatest Overweight (x) 8 | 1 1 1 1 1 5 6 7 7 7 7 8 3 3 3 3 4 4 4 2 1 1 1 1 1 1 2 1 1 1 . . . 1 . . . Average Overweight (x) 2 | . . 1 1 1 1 5 6 7 6 7 3 3 3 2 3 3 2 2 1 1 1 1 1 1 1 1 1 1 . . . . . . . . Largest Inventory Capacity 25 | 8 20 20 20 20 25 20 20 20 20 20 20 20 20 20 20 20 20 20 20 20 20 20 20 20 20 20 20 20 20 20 20 20 20 5 10 5 Average Capacity 19 | 7 17 20 20 20 22 20 20 20 20 20 20 20 20 20 20 20 18 20 20 20 20 20 20 20 20 20 20 20 20 20 20 20 19 5 5 5 Most Carried 25 | 7 20 20 20 20 25 20 20 20 20 20 20 20 20 20 20 20 20 20 20 20 20 20 20 20 20 20 20 20 20 20 20 20 20 5 10 5 Average Carried 18 | 4 14 19 20 19 22 19 19 19 20 19 19 20 19 19 19 19 16 18 19 19 19 19 19 19 19 19 19 19 19 19 19 19 18 4 4 5 Final Capacity 20 | 8 20 20 20 20 20 20 20 20 20 20 20 20 20 20 20 20 20 20 20 20 20 20 20 20 20 20 20 20 20 20 20 20 5 5 5 5 Final Carried 20 | 4 20 20 20 20 20 19 20 20 20 20 20 20 19 20 20 20 20 19 20 20 20 20 20 20 20 20 20 20 20 20 20 20 5 3 5 5 Class Distribution -------------------- 31% | Golem 19% | Mutant 15% | Skirmisher 7% | Scavenger-Mutant 5% | Generator-Mutant 4% | Hacker-Mutant 3% | Alien-Sigix 3% | Infiltrator-Skirmisher Dominant Class ---------------- Mutant | -10/Materials Mutant | -10/Mines Mutant | -10/Exiles Mutant | -9/Mines Hacker-Mutant | -8/Materials Hacker-Skirmisher | -7/Factory Skirmisher | -7/Lower Caves Skirmisher | -7/Lower Caves Mutant | -7/Data Miner Skirmisher | -6/Proximity Caves Infiltrator-Skirmisher | -6/Factory Infiltrator-Skirmisher | -6/Waste Infiltrator-Mutant | -6/Factory Skirmisher | -6/Lower Caves Skirmisher | -6/Lower Caves Mutant | -6/Zion Scavenger-Mutant | -6/Deep Caves Golem | -5/Proximity Caves Golem | -5/Factory Golem | -5/Extension Mutant | -5/Cetus Golem | -5/Archives Golem | -5/Hub_04(d) Golem | -4/Factory Golem | -4/Upper Caves Golem | -4/Upper Caves Mutant | -4/Zhirov Golem | -3/Proximity Caves Golem | -3/Research Tank | -3/Testing Generator-Skirmisher | -2/Research Generator-Assassin | -2/Quarantine Generator-Mutant | -2/Section 7 Alien-Sigix | -1/Access Alien-Sigix | -1/Command Alien-Sigix | -1/Access_0 Resources | -11 -10 -10 -10 -9 -8 -7 -7 -7 -7 -6 -6 -6 -6 -6 -6 -6 -6 -5 -5 -5 -5 -5 -5 -4 -4 -4 -4 -3 -3 -3 -2 -2 -2 -1 -1 -1 ----------- Run | Scr Mat Min Exi Min Mat Fac Low Low Dat Pro Fac Was Fac Low Low Zio Dee Pro Fac Ext Cet Arc Hub Fac Upp Upp Zhi Pro Res Tes Res Qua Sec Acc Com Ac0 Matter Collected 9410 | 282 430 72 . 28 1045 214 481 380 . 234 512 . 400 570 165 99 498 125 40 210 60 70 20 30 225 50 116 491 160 241 230 469 820 . 613 30 Remotely 211 | . . . . . . . . . . . . . . 211 . . . . . . . . . . . . . . . . . . . . . . Salvage Created 23962 | 89 516 175 . 78 1530 88 420 353 . 162 562 . 425 765 27 . 945 885 289 785 447 201 606 338 972 959 116 1124 214 963 658 1365 3221 . 3109 1575 Parts 1175 | 4 49 11 . 1 95 7 14 9 . 12 37 . 21 18 2 . 30 22 11 47 23 11 23 26 49 39 2 47 9 58 30 63 162 . 128 115 Haulers Intercepted 6 | . 1 . . . 4 . . . . . . . . . . . . . 1 . . . . . . . . . . . . . . . . . Recyclers Shooed 2 | . . . . . . . . . . . 1 . . . . . . . . . . . . 1 . . . . . . . . . . . . Parts Field Recycled . | . . . . . . . . . . . . . . . . . . . . . . . . . . . . . . . . . . . . . Retrieved Matter . | . . . . . . . . . . . . . . . . . . . . . . . . . . . . . . . . . . . . . Parts Self-Destructed 171 | . . . . . . . 14 8 . 6 . . . 10 2 . . 22 . . . . . . 28 36 1 44 . . . . . . . . Prevented 6 | . . . . . . . 2 . . 4 . . . . . . . . . . . . . . . . . . . . . . . . . . Kills | -11 -10 -10 -10 -9 -8 -7 -7 -7 -7 -6 -6 -6 -6 -6 -6 -6 -6 -5 -5 -5 -5 -5 -5 -4 -4 -4 -4 -3 -3 -3 -2 -2 -2 -1 -1 -1 ------- Run | Scr Mat Min Exi Min Mat Fac Low Low Dat Pro Fac Was Fac Low Low Zio Dee Pro Fac Ext Cet Arc Hub Fac Upp Upp Zhi Pro Res Tes Res Qua Sec Acc Com Ac0 Combat Hostiles Destroyed 329 | . 14 3 . . 23 2 6 4 . 6 10 . 6 16 3 . 44 14 3 9 8 1 1 4 16 13 . 17 2 9 5 14 45 . 18 13 Melee 1 | . . . . . . . . . . . . . . . . . 1 . . . . . . . . . . . . . . . . . . . Guns 96 | . 14 3 . . 23 2 6 4 . 2 5 . 2 . . . 4 . . . . . . . . . . . . . . . . . 18 13 Cannons 159 | . . . . . . . . . . . 5 . 4 1 1 . 4 12 3 9 8 1 . 4 11 13 . 12 2 9 4 13 43 . . . AOE 62 | . . . . . . . . . . 4 . . . 13 2 . 33 . . . . . 1 . 4 . . 5 . . . . . . . . Classes Destroyed 29 | 2 6 . . . 1 1 3 . . 1 1 . 2 1 . . 4 1 . . . . . . . . . . . 1 1 1 1 . 2 . Worker 12 | . 2 1 . . 3 1 . . . . 1 . . . . . . . . . . . 4 . . . . . . . . . . . . . Builder 8 | . . . . . . . . . . . 1 . . . . . . . . 1 . . 2 2 . . . . . 2 . . . . . . Tunneler 1 | 1 . . . . . . . . . . . . . . . . . . . . . . . . . . . . . . . . . . . . Hauler 6 | . 1 . . . 4 . . . . . . . . . . . . . 1 . . . . . . . . . . . . . . . . . Recycler 9 | 1 . 1 . 1 1 . . . . . . . . . . . . . . . . . 1 . . . . . . 1 1 . . . 2 . Minesweeper 1 | . . . . . . . 1 . . . . . . . . . . . . . . . . . . . . . . . . . . . . . Mechanic 3 | . . . . . . . . . . . . . 1 . . . . . . . . . . . . . . . . . . . . . 2 . Operator 16 | . 2 . . . 3 . . . . . . . 1 . . . . . . 2 . 3 1 . . . . . . 1 . 1 1 . 1 . Watcher 24 | . 3 . . . 4 . . . . . 3 . . . . . . . . 3 1 . . 1 . . . . 1 3 1 3 1 . . . Swarmer 62 | . 9 2 . . 5 . . . . 4 5 . . 8 3 . . 2 . . 3 . 1 . 2 5 . 1 . . . . 9 . 3 . Grunt 79 | . 5 1 . . 10 . 5 4 . . 1 . 4 4 . . . 7 1 3 . . . . 6 4 . 7 . 4 . 1 12 . . . Brawler 6 | . . . . . . . 1 . . . 1 . . 1 . . . 2 . . . . . . . . . 1 . . . . . . . . Duelist 4 | . . . . . . . . . . . . . 1 1 . . . . . . . . . . . . . 2 . . . . . . . . Protector 1 | . . . . . . . . . . . . . . . . . . . . . . . . . . . . . . . . . . . 1 . Researcher 2 | . . . . . . . . . . . . . . . . . . . . . . . . . . . . . . 1 . . 1 . . . Sentry 32 | . . . . . 8 . . . . . 1 . 1 1 . . . 2 . 3 . 1 . 1 2 1 . 2 2 . 1 . 5 . 1 . Specialist 1 | . . . . . . . . . . . . . . . . . . . . . . . . . . . . . . . . . . . 1 . Hunter 19 | . . . . . . . . . . 2 . . . 1 . . . . . 1 2 . . 2 . 2 . 2 . . . 4 . . 3 . Programmer 45 | . . . . . . 2 . . . . 2 . . . . . . . 2 2 . . . 1 1 1 . 2 . 5 2 8 15 . 2 . Heavy 2 | . . . . . . . . . . . . . . . . . . . . . . . . . . . . . . . 2 . . . . . Behemoth 5 | . . . . . . . . . . . . . . . . . . 1 . . . . . . 1 . . . . . . . 2 . 1 . Cetus Guard 3 | . . . . . . . . . . . . . . . . . . . . . 3 . . . . . . . . . . . . . . . M Guard 2 | . . . . . . . . . . . . . . . . . . . . . . . . . . . . . . . . . . . 2 . Enhanced Grunt 12 | . . . . . . . . . . . . . . . . . . . . . . . 3 . . . . . . . . . . . . 9 Enhanced Sentry 1 | . . . . . . . . . . . . . . . . . . . . . . . . . . . . . . . . . . . . 1 Combat Programmer 2 | . . . . . . . . . . . . . . . . . . . . . . . . . . . . . . . . . . . 2 . Executioner 2 | . . . . . . . . . . . . . . . . . . . . . . . . . . . . . . . . . 2 . . . Fortress 1 | . . . . . . . . . . . . . . . . . . . . . . . . . . . . . . . . 1 . . . . Z-Light 6 | . . . . . . . . . . . . . . . . . 6 . . . . . . . . . . . . . . . . . . . Decomposer 9 | . . . . . . . . . . . . . . 2 . . . . . . . . . . 4 3 . . . . . . . . . . Packrat 8 | . . . . . . . . 2 . . . . . 3 . . . . . . . . . . . 3 . . . . . . . . . . Samaritan 2 | . . . . . . . . . . . . . . 2 . . . . . . . . . . . . . . . . . . . . . . Assembler 2 | . . . . . . . . . . . . . . . . . 2 . . . . . . . . . . . . . . . . . . . Assembled 35 | . . . . . . . . . . . . . . . . . 35 . . . . . . . . . . . . . . . . . . . Golem 3 | . . . . . . . . . . . . . . . . . 3 . . . . . . . . . . . . . . . . . . . Thug 1 | . . . . . . . . . . . . . . . . . . . . . . . . . 1 . . . . . . . . . . . Butcher 4 | . . . . . . . . . . . . . . . . . 1 . . . . . . . 3 . . . . . . . . . . . Mutant 1 | . . . . . . . 1 . . . . . . . . . . . . . . . . . . . . . . . . . . . . . Best Kill Streak 36 | 2 7 2 . 1 5 2 4 4 . 4 5 . 2 8 3 . 36 5 2 3 8 4 8 4 7 6 . 12 2 4 3 4 9 . 4 6 Combat Bots Only 34 | . 5 2 . . 3 1 4 4 . 4 4 . 2 8 3 . 34 5 2 3 7 1 1 3 7 6 . 12 1 4 3 3 8 . 4 6 Max Kills in Single Turn 18 | 1 1 1 . 1 1 2 1 1 . 2 1 . 1 4 2 . 18 1 1 1 2 1 3 2 2 2 . 5 1 1 1 1 1 . 1 2 Gunslinging 1 | . . . . . . . . . . . . . . . . . . . . . . . . . . . . . . . . . . . . 1 Exploded 18 | . . . . . . . . . . 2 . . . 4 2 . 18 . . . . . 1 . 2 . . 4 . . . . . . . . Melee 1 | . . . . . . . . . . . . . . . . . 1 . . . . . . . . . . . . . . . . . . . Uniques/NPCs Destroyed 6 | . . . . . . . . . . . . . . . . . 1 . . . . . . . . . . . . . . . . . 2 3 Z-Imprinter (-6/Deep Caves) MAIN.C Shell (-1/Command) MAIN.C (-1/Command) A8 (-1/Access_0) A6 (-1/Access_0) Architect (-1/Access_0) Combat | -11 -10 -10 -10 -9 -8 -7 -7 -7 -7 -6 -6 -6 -6 -6 -6 -6 -6 -5 -5 -5 -5 -5 -5 -4 -4 -4 -4 -3 -3 -3 -2 -2 -2 -1 -1 -1 -------- Run | Scr Mat Min Exi Min Mat Fac Low Low Dat Pro Fac Was Fac Low Low Zio Dee Pro Fac Ext Cet Arc Hub Fac Upp Upp Zhi Pro Res Tes Res Qua Sec Acc Com Ac0 Damage Taken 21649 | . 520 106 . . 1290 149 505 482 . 220 698 . 488 1018 121 . 1640 1159 . 739 981 210 172 76 381 481 . 473 135 382 947 1063 3221 46 1967 1979 Core 3827 | . 96 23 . . 181 16 85 31 . 19 60 . 62 145 16 . 239 124 . 104 70 42 . . 47 31 . 20 . . 102 27 991 15 592 689 Absorbed by Shields 3727 | . . . . . . . . . . . . . . . . . . . . . 40 . . . . . . . . . . . . 47 1822 1818 Reduced by Siege Mode 396 | . . . . . . . . . . . . . . . . . . . . . . . . . . . . . . 26 117 92 161 . . . Redirected to Core 464 | . . . . . . . . . . . . . . . . . . . . . . . . . . . . . . . . 9 455 . . . Redirected to Shielding 112 | . . . . . . . . . . . . . . . . . 112 . . . . . . . . . . . . . . . . . . . Regen/Repaired (Parts) 2252 | . 273 . . . 219 . . . . . 574 . . . . . . . . . . . . . . . . . . 428 . 303 455 . . . Core Remaining (%) 61 | 100 . . . 52 67 . . . . 78 . . . . . . . 24 . . . . 78 . . . . 91 . 100 . . 17 . . 12 Volleys Fired 1206 | 3 69 12 . 3 100 12 29 28 . 13 54 3 45 37 3 1 40 30 21 36 25 13 18 10 32 38 . 19 13 49 22 81 196 10 74 67 Largest 4 | 2 2 2 . 2 2 2 2 2 . 2 2 2 2 2 2 1 2 2 2 2 2 2 2 3 3 3 . 3 3 3 3 3 1 4 4 4 Hottest 400 | 40 46 46 . 46 48 73 50 50 . 88 115 60 115 155 120 90 155 50 50 50 50 50 50 75 93 75 . 93 75 75 75 75 300 400 400 400 Shots Fired 2426 | 6 138 24 . 6 199 20 60 58 . 21 107 6 77 67 6 1 76 59 30 71 49 26 26 28 83 108 . 57 23 110 58 95 196 14 259 262 Gun 1167 | 6 138 24 . 6 198 7 60 58 . 11 81 . 30 . . . 15 . . . . . . . . . . . . . . . . 13 258 262 Cannon 1208 | . . . . . . 13 . . . 5 26 . 47 52 2 1 49 59 30 71 49 26 26 28 78 108 . 54 23 110 58 95 196 1 1 . Launcher 51 | . . . . . 1 . . . . 5 . 6 . 15 4 . 12 . . . . . . . 5 . . 3 . . . . . . . . Special . | . . . . . . . . . . . . . . . . . . . . . . . . . . . . . . . . . . . . . Kinetic 632 | 6 138 24 . 6 198 20 60 58 . 11 81 . 30 . . . . . . . . . . . . . . . . . . . . . . . Thermal 1188 | . . . . . . . . . . . 26 . 47 52 2 1 47 59 30 71 49 26 26 28 78 108 . 54 23 110 58 95 196 1 1 . Explosive 51 | . . . . . 1 . . . . 5 . 6 . 15 4 . 12 . . . . . . . 5 . . 3 . . . . . . . . Electromagnetic 22 | . . . . . . . . . . 5 . . . . . . 17 . . . . . . . . . . . . . . . . . . . Slashing 533 | . . . . . . . . . . . . . . . . . . . . . . . . . . . . . . . . . . 13 258 262 Robot Hit Streak 40 | 5 10 6 . 2 18 9 14 4 . 7 12 6 14 27 12 . 14 30 9 16 12 7 5 10 13 8 . 26 4 16 33 24 40 . 30 26 Robot Miss Streak 6 | . 5 6 . 2 4 1 3 3 . 3 5 . 4 3 . . 4 2 1 2 1 1 . 1 1 3 . 1 1 3 3 2 2 4 4 2 Penetration Max 1 | . . . . . . . . . . . . . . . . . . . . . . . . . . . . . . . . . . . 1 1 Secondary Targets 19 | . 2 1 . . 5 . 2 2 . . . . . . . . . . . . . . . . . . . . . . . . . . 2 5 Max Gunslinging Chain 1 | . 1 1 . . 1 . 1 1 . . . . . . . . . . . . . . . . . . . . . . . . . . 1 1 Capacitor 259 | . . . . . . . . . . . . . . . . . . . . . . . . . . . . . . . . 64 195 . . . Shots Hit Robots 1568 | 5 80 13 . 2 142 10 51 33 . 14 63 6 46 52 3 . 49 53 13 40 35 18 4 17 36 59 1 35 10 44 37 61 151 . 174 211 Core Hits 790 | 4 34 8 . 1 66 5 14 14 . 9 28 1 15 30 3 . 98 15 4 19 16 9 19 12 35 24 . 34 5 23 12 27 65 . 71 70 Critical Kills 2 | . 1 . . . . . . . . . . . . . . . 1 . . . . . . . . . . . . . . . . . . . Critical Parts Destroyed 3 | . . . . . 2 . . . . 1 . . . . . . . . . . . . . . . . . . . . . . . . . . Critical Strikes 13 | . 1 . . . 2 . . . . 1 . . . . . . 2 1 . . . . . . . . . . . . . . . . 3 3 Meltdown 1 | . . . . . . . . . . . . . . . . . 1 . . . . . . . . . . . . . . . . . . . Destroy 4 | . 1 . . . 2 . . . . 1 . . . . . . . . . . . . . . . . . . . . . . . . . . Corrupt 1 | . . . . . . . . . . . . . . . . . 1 . . . . . . . . . . . . . . . . . . . Sever 6 | . . . . . . . . . . . . . . . . . . . . . . . . . . . . . . . . . . . 3 3 Impale 1 | . . . . . . . . . . . . . . . . . . 1 . . . . . . . . . . . . . . . . . . Melee Attacks 50 | . . . . . . 5 4 . . . 1 . . . . 9 9 9 . . . . . . 1 . 1 . . . . 3 8 . . . Kinetic 1 | . . . . . . . . . . . . . . . . . . . . . . . . . . . . . . . . 1 . . . . Impact 19 | . . . . . . 5 4 . . . 1 . . . . 9 . . . . . . . . . . . . . . . . . . . . Slashing 17 | . . . . . . . . . . . . . . . . . 9 . . . . . . . . . . . . . . 2 6 . . . Piercing 13 | . . . . . . . . . . . . . . . . . . 9 . . . . . . 1 . 1 . . . . . 2 . . . Sneak Attacks 5 | . . . . . . . 4 . . . . . . . . . . . . . . . . . . . . . . . . . 1 . . . Combat Hostiles . | . . . . . . . . . . . . . . . . . . . . . . . . . . . . . . . . . . . . . Follow-up Attacks . | . . . . . . . . . . . . . . . . . . . . . . . . . . . . . . . . . . . . . Damage Inflicted 72240 | 46 898 192 . 32 2302 270 1132 597 . 649 1397 540 1214 2461 306 . 4424 2343 649 1892 1653 949 932 1014 2343 2547 . 2485 474 2102 1613 3097 7692 . 12260 11735 Guns 30823 | 46 898 192 . 32 2302 149 828 597 . 85 943 . 417 . . . 339 . . . . . . . . . . . . . . . . . 12260 11735 Cannons 33164 | . . . . . . 121 . . . 132 454 . 689 1312 31 . 1056 2206 649 1892 1653 949 245 949 1642 2547 . 1855 474 2102 1613 3097 7496 . . . Explosions 7388 | . . . . . . . . . . 432 . 540 108 1149 275 . 2801 . . . . . 687 65 701 . . 630 . . . . . . . . Melee 865 | . . . . . . . 304 . . . . . . . . . 228 137 . . . . . . . . . . . . . . 196 . . . Ramming . | . . . . . . . . . . . . . . . . . . . . . . . . . . . . . . . . . . . . . Kinetic 6610 | 46 898 192 . 32 2302 270 828 597 . 85 943 . 417 . . . . . . . . . . . . . . . . . . . . . . . Thermal 33103 | . . . . . . . . . . . 454 . 689 1312 31 . 1183 2206 649 1892 1653 949 245 1014 1642 2547 . 1855 474 2102 1613 3097 7496 . . . Explosive 6555 | . . . . . . . . . . 432 . 540 108 1149 275 . 2720 . . . . . . . 701 . . 630 . . . . . . . . Electromagnetic 1112 | . . . . . . . . . . 132 . . . . . . 293 . . . . . 687 . . . . . . . . . . . . . Impact 304 | . . . . . . . 304 . . . . . . . . . . . . . . . . . . . . . . . . . . . . . Slashing 24419 | . . . . . . . . . . . . . . . . . 228 . . . . . . . . . . . . . . . 196 . 12260 11735 Piercing 137 | . . . . . . . . . . . . . . . . . . 137 . . . . . . . . . . . . . . . . . . Highest Corruption 18 | . . . . . . 2 2 2 2 2 7 10 18 18 18 18 . . . . . . 1 . . 1 1 5 . 2 1 4 4 . . . Average Corruption 5 | . . . . . . 1 2 2 2 2 5 10 16 18 18 18 . . . . . . 1 . . 1 1 4 . 1 1 1 4 . . . Corruption Purged 9 | . . . . . . . . . . . . . . . . . . . . . . . . . . . . 5 . . . 4 . . . . Corruption Blocked . | . . . . . . . . . . . . . . . . . . . . . . . . . . . . . . . . . . . . . Effects 297 | . . . . . . 10 19 22 3 23 23 3 43 56 34 1 . . . . . . . . . 3 1 31 . 6 1 17 1 . . . Message Errors 74 | . . . . . . 2 3 4 1 6 4 2 12 22 5 1 . . . . . . . . . . . 6 . 1 1 4 . . . . Matter Fused 75 | . . . . . . 2 3 7 1 8 5 . 10 17 10 . . . . . . . . . . . 1 6 . 2 . 2 1 . . . Heat Flow Errors 35 | . . . . . . 1 3 3 1 2 3 . 7 4 5 . . . . . . . . . . 1 . 3 . 1 . 1 . . . . Energy Discharges 39 | . . . . . . 1 4 3 . 4 5 1 6 1 6 . . . . . . . . . . 1 . 4 . 2 . 1 . . . . Parts Rejected 1 | . . . . . . . 1 . . . . . . . . . . . . . . . . . . . . . . . . . . . . . Data Loss (minor) 32 | . . . . . . 3 2 . . 3 1 . 3 6 2 . . . . . . . . . . 1 . 4 . . . 7 . . . . Data Loss (major) 11 | . . . . . . . 1 1 . . 3 . . . 2 . . . . . . . . . . . . 3 . . . 1 . . . . Misfires 17 | . . . . . . 1 2 2 . . . . 3 2 2 . . . . . . . . . . . . 5 . . . . . . . . Alerts 8 | . . . . . . . . 2 . . 1 . . 3 2 . . . . . . . . . . . . . . . . . . . . . Weapon Failures 5 | . . . . . . . . . . . 1 . 2 1 . . . . . . . . . . . . . . . . . 1 . . . . Overload Shots . | . . . . . . . . . . . . . . . . . . . . . . . . . . . . . . . . . . . . . Overflow Damage 2221 | . . . . . . . 120 . . 63 3 . 14 223 16 . 81 152 . 33 19 15 57 11 90 153 . 51 . 207 5 330 578 . . . Projectiles 1734 | . . . . . . . . . . . 3 . 14 204 . . 5 152 . 33 19 15 . 11 90 153 . 51 . 207 5 330 442 . . . Explosions 231 | . . . . . . . . . . 63 . . . 19 16 . 76 . . . . . 57 . . . . . . . . . . . . . Melee 256 | . . . . . . . 120 . . . . . . . . . . . . . . . . . . . . . . . . . 136 . . . Knockbacks . | . . . . . . . . . . . . . . . . . . . . . . . . . . . . . . . . . . . . . Impact . | . . . . . . . . . . . . . . . . . . . . . . . . . . . . . . . . . . . . . Kinetic . | . . . . . . . . . . . . . . . . . . . . . . . . . . . . . . . . . . . . . Secondary . | . . . . . . . . . . . . . . . . . . . . . . . . . . . . . . . . . . . . . Self-Inflicted Damage 341 | . . . . . . . . . . . . . 33 12 79 . 65 . . . . . 152 . . . . . . . . . . . . . Shots 11 | . . . . . . . . . . . . . 1 1 3 . 4 . . . . . 2 . . . . . . . . . . . . . Rammed . | . . . . . . . . . . . . . . . . . . . . . . . . . . . . . . . . . . . . . Targets Rammed . | . . . . . . . . . . . . . . . . . . . . . . . . . . . . . . . . . . . . . Kicked . | . . . . . . . . . . . . . . . . . . . . . . . . . . . . . . . . . . . . . Crushed . | . . . . . . . . . . . . . . . . . . . . . . . . . . . . . . . . . . . . . Highest Temperature 267 | . 25 12 . . 10 229 222 137 169 201 258 . 250 203 221 . 92 14 . 17 . . . . 21 212 . 231 . 168 8 267 201 128 128 108 Average Temperature 62 | . 7 8 . . 10 87 74 43 85 50 68 . 47 95 103 . 38 4 . 8 . . . . 10 48 . 66 . 50 6 108 73 68 87 77 Received Heat Transfer 3441 | . 126 30 . . 603 . 306 288 . . 114 . 201 171 . . 307 279 . 189 18 18 . . 60 137 . 42 27 93 27 18 270 . 84 33 Effects 2 | . . . . . . . . . . . . . . . . . . . . . . . . . . . . . . . . . 2 . . . Interference 2 | . . . . . . . . . . . . . . . . . . . . . . . . . . . . . . . . . 2 . . . Siege Activations 21 | . . . . . . . . . . . . . . . . . . . . . . . . . . . . . . 3 2 6 10 . . . Total Turns 301 | . . . . . . . . . . . . . . . . . . . . . . . . . . . . . . 45 26 82 148 . . . Longest Duration 47 | . . . . . . . . . . . . . . . . . . . . . . . . . . . . . . 18 13 47 32 . . . Robots Corrupted 4 | . . . . . . . . . . . . . . . . . 2 . . . . . 2 . . . . . . . . . . . . . Combat Hostiles 2 | . . . . . . . . . . . . . . . . . 2 . . . . . . . . . . . . . . . . . . . Parts Fried 11 | . . . . . . . 2 . . 3 . . . . . . . . . . 1 . 5 . . . . . . . . . . . . . Impact Corruptions 2 | . . . . . . . 2 . . . . . . . . . . . . . . . . . . . . . . . . . . . . . Robots Melted 5 | . . . . . . . . . . . . . . 2 . . 1 1 . . . . . . . . . . . . 1 . . . . . Combat Hostiles 4 | . . . . . . . . . . . . . . 2 . . . 1 . . . . . . . . . . . . 1 . . . . . Parts Melted 38 | . . . . . . . . . . . 3 . 1 2 . . 2 1 . 3 . . . 1 . . . . 1 3 8 4 9 . . . Heat Transferred 20501 | . . . . . . . . . . . 594 . 1050 1953 50 . 1155 1225 350 1000 975 499 125 575 925 1375 . 950 250 1125 925 1500 3900 . . . Parts Sabotaged . | . . . . . . . . . . . . . . . . . . . . . . . . . . . . . . . . . . . . . Parts Stolen . | . . . . . . . . . . . . . . . . . . . . . . . . . . . . . . . . . . . . . Parts Stripped . | . . . . . . . . . . . . . . . . . . . . . . . . . . . . . . . . . . . . . Power Chain Reactions 1 | . . . . . . . . . . . . . . . . . 1 . . . . . . . . . . . . . . . . . . . Missiles Intercepted . | . . . . . . . . . . . . . . . . . . . . . . . . . . . . . . . . . . . . . Alert | -11 -10 -10 -10 -9 -8 -7 -7 -7 -7 -6 -6 -6 -6 -6 -6 -6 -6 -5 -5 -5 -5 -5 -5 -4 -4 -4 -4 -3 -3 -3 -2 -2 -2 -1 -1 -1 ------- Run | Scr Mat Min Exi Min Mat Fac Low Low Dat Pro Fac Was Fac Low Low Zio Dee Pro Fac Ext Cet Arc Hub Fac Upp Upp Zhi Pro Res Tes Res Qua Sec Acc Com Ac0 Peak Influence 1047 | 10 240 50 . 5 321 122 . . . . 250 86 267 . . . . . 128 196 393 392 935 794 . . . . 81 203 186 326 1047 870 813 . Initial 628 | . 6 . . . 1 119 . . . . . 68 46 . . . . . . . 20 141 14 457 . . . . . 45 77 104 158 628 544 . Average 181 | 3 68 12 . . 219 53 . . . . 104 68 84 . . . . . 41 58 230 254 122 614 . . . . 12 82 95 208 549 697 689 . Maximum Alert Level 4 | . 1 . . . 1 . . . . . 1 . 1 . . . . . . . 1 1 3 3 . . . . . 1 . 1 3 3 4 . Low Security (%) 65 | 100 96 100 . 100 31 100 . . . . 93 100 89 . . . . . 100 100 22 63 91 . . . . . 100 99 100 41 18 . . . Level 1 21 | . 3 . . . 68 . . . . . 6 . 10 . . . . . . . 77 36 6 . . . . . . . . 58 18 . . . Level 2 4 | . . . . . . . . . . . . . . . . . . . . . . . 1 80 . . . . . . . . 22 57 14 . Level 3 6 | . . . . . . . . . . . . . . . . . . . . . . . . 19 . . . . . . . . 40 42 35 . Level 4 2 | . . . . . . . . . . . . . . . . . . . . . . . . . . . . . . . . . . . 50 . Level 5 . | . . . . . . . . . . . . . . . . . . . . . . . . . . . . . . . . . . . . . High Security . | . . . . . . . . . . . . . . . . . . . . . . . . . . . . . . . . . . . . . Max Security . | . . . . . . . . . . . . . . . . . . . . . . . . . . . . . . . . . . . . . Squads Dispatched 48 | . 3 . . 1 4 1 . . . . 3 . 1 . . . . . 2 1 . . 1 1 . . . . 1 6 2 5 12 2 2 . Investigation 4 | . 1 . . 1 1 . . . . . . . . . . . . . . . . . . . . . . . . . . 1 . . . . Extermination 20 | . . . . . . 1 . . . . 2 . 1 . . . . . 1 . . . . 1 . . . . 1 3 1 4 5 . . . Reinforcement 18 | . 2 . . . 3 . . . . . 1 . . . . . . . 1 1 . . 1 . . . . . . 3 1 . 2 2 1 . Assault 6 | . . . . . . . . . . . . . . . . . . . . . . . . . . . . . . . . . 5 . 1 . Garrison . | . . . . . . . . . . . . . . . . . . . . . . . . . . . . . . . . . . . . . Intercept . | . . . . . . . . . . . . . . . . . . . . . . . . . . . . . . . . . . . . . Searches Triggered . | . . . . . . . . . . . . . . . . . . . . . . . . . . . . . . . . . . . . . Data Miner Redirects 6 | . . . . . . . . . . . . . . . . . . . . . . . . . . . . . . 1 . 1 4 . . . Construction Impeded 1 | . . . . . . . . . . . . . . . . . . . . . . . 1 . . . . . . . . . . . . . Haulers Reinforced 1 | . . . . . . . . . . . . . . . . . . . 1 . . . . . . . . . . . . . . . . . Active Scanning Responses . | . . . . . . . . . . . . . . . . . . . . . . . . . . . . . . . . . . . . . Cargo Convoy Interrupts 1 | . . . . . . 1 . . . . . . . . . . . . . . . . . . . . . . . . . . . . . . Stealth | -11 -10 -10 -10 -9 -8 -7 -7 -7 -7 -6 -6 -6 -6 -6 -6 -6 -6 -5 -5 -5 -5 -5 -5 -4 -4 -4 -4 -3 -3 -3 -2 -2 -2 -1 -1 -1 --------- Run | Scr Mat Min Exi Min Mat Fac Low Low Dat Pro Fac Was Fac Low Low Zio Dee Pro Fac Ext Cet Arc Hub Fac Upp Upp Zhi Pro Res Tes Res Qua Sec Acc Com Ac0 Distress Signals 39 | . . . . . 7 . . . . . . . . . . . . . . . 1 . . . . . . . . 1 . . 3 1 26 . Communications Jammed 17 | . . . . . 5 . . . . . 2 . 3 . . . . . . . . . . . . . . . . . 7 . . . . . Distress Signals 10 | . . . . . 5 . . . . . 2 . 3 . . . . . . . . . . . . . . . . . . . . . . . Times Spotted 453 | . 21 4 . 1 46 3 6 4 . 7 19 4 14 16 3 . 61 13 4 14 13 10 5 6 10 9 . 13 5 17 6 17 54 . 29 19 Peak Tracking Total 37 | . 3 2 . . 7 1 4 4 . 4 5 4 3 8 3 . 37 5 2 5 9 2 3 2 7 7 . 11 3 3 2 3 6 1 14 7 Tactical Retreats 11 | . . . . . 1 . . . . . . 1 2 . . . . . . . . . . . . . . . . . . . 4 1 2 . Traps | -11 -10 -10 -10 -9 -8 -7 -7 -7 -7 -6 -6 -6 -6 -6 -6 -6 -6 -5 -5 -5 -5 -5 -5 -4 -4 -4 -4 -3 -3 -3 -2 -2 -2 -1 -1 -1 ------- Run | Scr Mat Min Exi Min Mat Fac Low Low Dat Pro Fac Was Fac Low Low Zio Dee Pro Fac Ext Cet Arc Hub Fac Upp Upp Zhi Pro Res Tes Res Qua Sec Acc Com Ac0 Traps Triggered 21 | . 2 . . . 1 2 . . . . 4 . 1 . . . . . . 1 . . 3 . . . . . . 1 . 1 . 3 2 . Indirectly . | . . . . . . . . . . . . . . . . . . . . . . . . . . . . . . . . . . . . . Trap Hack Attempts . | . . . . . . . . . . . . . . . . . . . . . . . . . . . . . . . . . . . . . Triggered . | . . . . . . . . . . . . . . . . . . . . . . . . . . . . . . . . . . . . . Disarmed . | . . . . . . . . . . . . . . . . . . . . . . . . . . . . . . . . . . . . . Reprogrammed . | . . . . . . . . . . . . . . . . . . . . . . . . . . . . . . . . . . . . . Reused . | . . . . . . . . . . . . . . . . . . . . . . . . . . . . . . . . . . . . . Traps Extracted . | . . . . . . . . . . . . . . . . . . . . . . . . . . . . . . . . . . . . . Installed . | . . . . . . . . . . . . . . . . . . . . . . . . . . . . . . . . . . . . . Triggered 2 | . . . . . . 1 1 . . . . . . . . . . . . . . . . . . . . . . . . . . . . . Machines | -11 -10 -10 -10 -9 -8 -7 -7 -7 -7 -6 -6 -6 -6 -6 -6 -6 -6 -5 -5 -5 -5 -5 -5 -4 -4 -4 -4 -3 -3 -3 -2 -2 -2 -1 -1 -1 ---------- Run | Scr Mat Min Exi Min Mat Fac Low Low Dat Pro Fac Was Fac Low Low Zio Dee Pro Fac Ext Cet Arc Hub Fac Upp Upp Zhi Pro Res Tes Res Qua Sec Acc Com Ac0 Machines Disabled 54 | . 2 . . . 2 1 . . . . . . 3 . . . 2 . . . 1 2 12 2 . 1 . 1 . 5 . 9 2 1 4 4 Max in Single Turn 8 | . 1 . . . 1 1 . . . . . . 2 . . . 1 . . . 1 1 8 2 . 1 . 1 . 1 . 1 1 1 1 1 Garrison Access 2 | . . . . . 1 . . . . . . . . . . . . . . . . . . . . . . . . 1 . . . . . . Phase Generator 1 | . . . . . . . . . . . . . . . . . . . . . . . . . . . . . . . . . . . 1 . Network Hub 2 | . . . . . . . . . . . . . . . . . . . . . . . 2 . . . . . . . . . . . . . Machines Sabotaged . | . . . . . . . . . . . . . . . . . . . . . . . . . . . . . . . . . . . . . Garrisons Compromised 1 | . . . . . . 1 . . . . . . . . . . . . . . . . . . . . . . . . . . . . . . Overloaded Fab Kills . | . . . . . . . . . . . . . . . . . . . . . . . . . . . . . . . . . . . . . Hacking | -11 -10 -10 -10 -9 -8 -7 -7 -7 -7 -6 -6 -6 -6 -6 -6 -6 -6 -5 -5 -5 -5 -5 -5 -4 -4 -4 -4 -3 -3 -3 -2 -2 -2 -1 -1 -1 --------- Run | Scr Mat Min Exi Min Mat Fac Low Low Dat Pro Fac Was Fac Low Low Zio Dee Pro Fac Ext Cet Arc Hub Fac Upp Upp Zhi Pro Res Tes Res Qua Sec Acc Com Ac0 Machines Accessed 113 | . 7 . 4 3 13 9 . . 4 . 9 . 6 1 . . . . . 2 1 . 1 3 1 3 4 . 2 10 1 8 9 4 8 . Terminals 62 | . 5 . . 2 7 6 . . . . 1 . 3 . . . . . . 1 1 . 1 2 1 1 . . 1 7 1 6 7 1 8 . Fabricators 7 | . . . . . . 1 . . . . . . 2 . . . . . . . . . . . . . . . 1 1 . . . 2 . . Repair Stations 5 | . 1 . . . 1 . . . . . 2 . . . . . . . . . . . . . . . . . . 1 . . . . . . Recycling Units 10 | . 1 . . . 2 1 . . . . 4 . . . . . . . . 1 . . . 1 . . . . . . . . . . . . Scanalyzers 4 | . . . . . 2 . . . . . . . . . . . . . . . . . . . . . . . . . . 1 1 . . . Garrison Access 9 | . . . . . 1 1 . . . . 2 . 1 . . . . . . . . . . . . . . . . 1 . 1 1 1 . . Total Hacks 436 | . 39 . 4 6 55 24 . . 26 . 22 . 12 1 . . . . . 5 1 . 3 17 5 12 17 . 10 74 3 27 37 8 28 . Successful 227 | . 25 . 4 2 38 11 . . 26 . 10 . 3 1 . . . . . 5 . . . 8 5 12 17 . 3 23 2 10 11 2 9 . Failed 207 | . 13 . . 4 16 13 . . . . 12 . 9 . . . . . . . 1 . 3 9 . . . . 7 51 1 17 26 6 19 . Catastrophic 49 | . . . . . . 1 . . . . 2 . 2 . . . . . . . . . . 2 . . . . 3 11 1 7 10 2 8 . Database Lockouts 2 | . 1 . . . 1 . . . . . . . . . . . . . . . . . . . . . . . . . . . . . . . Manual 186 | . 17 . . 7 22 16 . . . . 13 . 10 . . 1 . . . 4 1 . 1 9 . . . . 4 37 3 10 14 3 14 . Terminals 265 | . 26 . . 5 30 16 . . . . 3 . 7 . . . . . . 1 1 . 3 10 5 4 . . 5 63 3 19 34 2 28 . Fabricators 16 | . . . . . . 2 . . . . . . 2 . . . . . . . . . . . . . . . 5 2 . . . 5 . . Repair Stations 18 | . 8 . . . 4 . . . . . 3 . . . . . . . . . . . . . . . . . . 3 . . . . . . Recycling Units 43 | . 5 . . . 10 4 . . . . 13 . . . . . . . . 4 . . . 7 . . . . . . . . . . . . Scanalyzers 16 | . . . . . 9 . . . . . . . . . . . . . . . . . . . . . . . . . . 6 1 . . . Garrison Access 21 | . . . . . 2 2 . . . . 3 . 3 . . . . . . . . . . . . . . . . 6 . 2 2 1 . . Terminal Hacks 129 | . 11 . 4 2 13 5 . . 26 . . . 1 1 . . . . . . . . . 3 5 12 17 . 1 13 . 2 8 . 5 . Record 35 | . . . 4 . . . . . 7 . . . . . . . . . . . . . . . 5 11 5 . . . . 1 1 . 1 . Part Schematic 16 | . 2 . . . . . . . 10 . . . . . . . . . . . . . . . . . 4 . . . . . . . . . Robot Schematic 6 | . . . . . . . . . 6 . . . . . . . . . . . . . . . . . . . . . . . . . . . Robot Analysis 9 | . . . . 1 2 . . . . . . . . . . . . . . . . . . . . . 4 . . 1 . . 1 . . . Prototype ID Bank 17 | . 2 . . . 3 1 . . 3 . . . . . . . . . . . . . . . . . 4 . . 4 . . . . . . Open Door 6 | . . . . 1 . . . . . . . . . 1 . . . . . . . . . . . 1 . . . . . . 1 . 2 . Level Access Points 2 | . . . . . 1 . . . . . . . . . . . . . . . . . . . . . . . . 1 . . . . . . Branch Access Points 5 | . 1 . . . . 1 . . . . . . 1 . . . . . . . . . . 1 . . . . 1 . . . . . . . Emergency Access Points 1 | . . . . . . . . . . . . . . . . . . . . . . . . . . . . . . 1 . . . . . . Machine Index 1 | . . . . . . . . . . . . . . . . . . . . . . . . . . . . . . . . . 1 . . . Alert Level 1 | . . . . . . . . . . . . . . . . . . . . . . . . . . . . . . 1 . . . . . . Locate Traps 9 | . 4 . . . 2 1 . . . . . . . . . . . . . . . . . 1 . . . . . . . . 1 . . . Security Status 2 | . . . . . . . . . . . . . . . . . . . . . . . . . . . . . . 1 . . . . 1 . Investigation Status 1 | . . . . . . . . . . . . . . . . . . . . . . . . . . . . . . . . . 1 . . . Hauler Manifests 4 | . 1 . . . 2 1 . . . . . . . . . . . . . . . . . . . . . . . . . . . . . . Registered Components 4 | . 1 . . . . 1 . . . . . . . . . . . . . . . . . . . . . . . . . . 1 . 1 . Registered Prototypes 2 | . . . . . 1 . . . . . . . . . . . . . . . . . . . . . . . . 1 . . . . . . Zone Layout 8 | . . . . . 2 . . . . . . . . . . . . . . . . . . 1 . . . . . 3 . 1 1 . . . Fabricator Hacks 5 | . . . . . . 1 . . . . . . 1 . . . . . . . . . . . . . . . 2 1 . . . . . . Network Status 4 | . . . . . . 1 . . . . . . 1 . . . . . . . . . . . . . . . 1 1 . . . . . . Load Schematic 1 | . . . . . . . . . . . . . . . . . . . . . . . . . . . . . 1 . . . . . . . Repair Station Hacks 16 | . 8 . . . 4 . . . . . 2 . . . . . . . . . . . . . . . . . . 2 . . . . . . Scan Component 8 | . 4 . . . 2 . . . . . 1 . . . . . . . . . . . . . . . . . . 1 . . . . . . Repair 8 | . 4 . . . 2 . . . . . 1 . . . . . . . . . . . . . . . . . . 1 . . . . . . Recycling Unit Hacks 7 | . 1 . . . 3 . . . . . 1 . . . . . . . . 1 . . . 1 . . . . . . . . . . . . Retrieve Matter 1 | . . . . . 1 . . . . . . . . . . . . . . . . . . . . . . . . . . . . . . . Retrieve Components 6 | . 1 . . . 2 . . . . . 1 . . . . . . . . 1 . . . 1 . . . . . . . . . . . . Scanalyzer 12 | . . . . . 5 . . . . . . . . . . . . . . . . . . . . . . . . . . 6 1 . . . Insert Component 9 | . . . . . 3 . . . . . . . . . . . . . . . . . . . . . . . . . . 5 1 . . . Analyze 3 | . . . . . 2 . . . . . . . . . . . . . . . . . . . . . . . . . . 1 . . . . Garrison Access Hacks 2 | . . . . . 1 . . . . . . . . . . . . . . . . . . . . . . . . 1 . . . . . . Seal Access 2 | . . . . . 1 . . . . . . . . . . . . . . . . . . . . . . . . 1 . . . . . . Unauthorized Hacks 56 | . 5 . . . 12 5 . . . . 7 . 1 . . . . . . 4 . . . 4 . . . . . 6 2 2 2 2 4 . Terminals 36 | . 4 . . . 7 2 . . . . 2 . 1 . . . . . . 1 . . . 2 . . . . . 6 2 2 2 1 4 . Track 1 | . . . . . 1 . . . . . . . . . . . . . . . . . . . . . . . . . . . . . . . Assimilate 3 | . . . . . . 1 . . . . . . . . . . . . . . . . . . . . . . . 1 . . . . 1 . Botnet 24 | . 3 . . . 3 1 . . . . 1 . 1 . . . . . . 1 . . . 1 . . . . . 4 1 2 2 1 3 . Disrupt 2 | . . . . . 2 . . . . . . . . . . . . . . . . . . . . . . . . . . . . . . . Operators 6 | . 1 . . . 1 . . . . . 1 . . . . . . . . . . . . 1 . . . . . 1 1 . . . . . Fabricators . | . . . . . . . . . . . . . . . . . . . . . . . . . . . . . . . . . . . . . Repair Stations . | . . . . . . . . . . . . . . . . . . . . . . . . . . . . . . . . . . . . . Recycling Units 18 | . 1 . . . 5 3 . . . . 4 . . . . . . . . 3 . . . 2 . . . . . . . . . . . . Reject 4 | . . . . . 2 1 . . . . . . . . . . . . . 1 . . . . . . . . . . . . . . . . Recyclers 6 | . . . . . 1 1 . . . . 2 . . . . . . . . 1 . . . 1 . . . . . . . . . . . . Mask 8 | . 1 . . . 2 1 . . . . 2 . . . . . . . . 1 . . . 1 . . . . . . . . . . . . Scanalyzers . | . . . . . . . . . . . . . . . . . . . . . . . . . . . . . . . . . . . . . Garrison Access 2 | . . . . . . . . . . . 1 . . . . . . . . . . . . . . . . . . . . . . 1 . . Watchers 2 | . . . . . . . . . . . 1 . . . . . . . . . . . . . . . . . . . . . . 1 . . Data Cores Recovered 4 | . . . . . 1 . . . . . . . 1 . . . . . . 1 . . 1 . . . . . . . . . . . . . Used 1 | . . . . . . . . . . . . . . . . . . . . 1 . . . . . . . . . . . . . . . . Hacking Detections 83 | . 6 . . 2 11 9 . . . . 8 . 5 . . . . . . 2 1 . 1 3 1 . . . 2 8 1 6 7 3 7 . Full Trace Events 2 | . 1 . . . 1 . . . . . . . . . . . . . . . . . . . . . . . . . . . . . . . Feedback Events . | . . . . . . . . . . . . . . . . . . . . . . . . . . . . . . . . . . . . . Feedback Blocked . | . . . . . . . . . . . . . . . . . . . . . . . . . . . . . . . . . . . . . Robot Schematics Acquired 10 | . . . . . . . . . 6 . . . . . . 2 . . . . . . . . . . . . . 2 . . . . . . Robots Built . | . . . . . . . . . . . . . . . . . . . . . . . . . . . . . . . . . . . . . Authchips . | . . . . . . . . . . . . . . . . . . . . . . . . . . . . . . . . . . . . . Time . | . . . . . . . . . . . . . . . . . . . . . . . . . . . . . . . . . . . . . Total Robot Build Rating . | . . . . . . . . . . . . . . . . . . . . . . . . . . . . . . . . . . . . . Part Schematics Acquired 39 | . 2 . . . 1 . . . 10 . . . . . . 15 . . . . . . . . . . 4 . . 1 . 1 5 . . . Parts Built . | . . . . . . . . . . . . . . . . . . . . . . . . . . . . . . . . . . . . . Authchips . | . . . . . . . . . . . . . . . . . . . . . . . . . . . . . . . . . . . . . Time . | . . . . . . . . . . . . . . . . . . . . . . . . . . . . . . . . . . . . . Total Part Build Rating . | . . . . . . . . . . . . . . . . . . . . . . . . . . . . . . . . . . . . . Parts Repaired 8 | . 4 . . . 2 . . . . . 1 . . . . . . . . . . . . . . . . . . 1 . . . . . . Time 344 | . 110 . . . 104 . . . . . 22 . . . . . . . . . . . . . . . . . . 108 . . . . . . Parts Recycled . | . . . . . . . . . . . . . . . . . . . . . . . . . . . . . . . . . . . . . Recycled Matter . | . . . . . . . . . . . . . . . . . . . . . . . . . . . . . . . . . . . . . Retrieved Matter . | . . . . . . . . . . . . . . . . . . . . . . . . . . . . . . . . . . . . . Retrieved Components 26 | . 6 . . . 9 . . . . . 1 . . . . . . . . 10 . . . . . . . . . . . . . . . . Parts Scanalyzed 2 | . . . . . 1 . . . . . . . . . . . . . . . . . . . . . . . . . . 1 . . . . Part Schematics Acquired 2 | . . . . . 1 . . . . . . . . . . . . . . . . . . . . . . . . . . 1 . . . . Parts Damaged . | . . . . . . . . . . . . . . . . . . . . . . . . . . . . . . . . . . . . . Bothacking | -11 -10 -10 -10 -9 -8 -7 -7 -7 -7 -6 -6 -6 -6 -6 -6 -6 -6 -5 -5 -5 -5 -5 -5 -4 -4 -4 -4 -3 -3 -3 -2 -2 -2 -1 -1 -1 ------------ Run | Scr Mat Min Exi Min Mat Fac Low Low Dat Pro Fac Was Fac Low Low Zio Dee Pro Fac Ext Cet Arc Hub Fac Upp Upp Zhi Pro Res Tes Res Qua Sec Acc Com Ac0 Used RIF Installer . | . . . . . . . . . . . . . . . . . . . . . . . . . . . . . . . . . . . . . Robots Hacked . | . . . . . . . . . . . . . . . . . . . . . . . . . . . . . . . . . . . . . Non-combat . | . . . . . . . . . . . . . . . . . . . . . . . . . . . . . . . . . . . . . Combat . | . . . . . . . . . . . . . . . . . . . . . . . . . . . . . . . . . . . . . Robot Hacks Applied . | . . . . . . . . . . . . . . . . . . . . . . . . . . . . . . . . . . . . . Relay Couplers Released . | . . . . . . . . . . . . . . . . . . . . . . . . . . . . . . . . . . . . . Fabnet Peak Effective % . | . . . . . . . . . . . . . . . . . . . . . . . . . . . . . . . . . . . . . Robots Rewired 3 | . . . . . . . . . . . . . . . . . . 1 . . . . . . . . . 2 . . . . . . . . Allies Hacked 3 | . . . . . . . . . . . . . . . . . . . . 1 . . . . . . . . 1 1 . . . . . . Hacks Repelled . | . . . . . . . . . . . . . . . . . . . . . . . . . . . . . . . . . . . . . Allies | -11 -10 -10 -10 -9 -8 -7 -7 -7 -7 -6 -6 -6 -6 -6 -6 -6 -6 -5 -5 -5 -5 -5 -5 -4 -4 -4 -4 -3 -3 -3 -2 -2 -2 -1 -1 -1 -------- Run | Scr Mat Min Exi Min Mat Fac Low Low Dat Pro Fac Was Fac Low Low Zio Dee Pro Fac Ext Cet Arc Hub Fac Upp Upp Zhi Pro Res Tes Res Qua Sec Acc Com Ac0 Total Allies 114 | . . . . 3 . 1 . . . 1 . 1 . . . 6 . 1 . 7 5 . . . . . . 2 . 3 . . . 36 48 . Largest Group 25 | . . . . 3 3 1 1 1 1 1 . 1 . . . 6 6 1 1 3 5 4 3 . . . . 2 2 3 . . . 25 20 . Highest-Rated Group 534 | . . . . 40 40 10 10 9 9 96 . 31 . . . 299 299 96 49 210 534 438 288 . . . . 95 95 138 . . . 348 282 . Highest-Rated Ally 159 | . . . . 16 16 10 10 9 9 96 . 31 . . . 96 96 96 49 159 159 150 96 . . . . 48 48 46 . . . 15 15 . Total Orders 17 | . . . . . . . . 2 . . . . . . . . . . . 2 4 2 2 . . . . . 1 . 4 . . . . . STAY 6 | . . . . . . . . 1 . . . . . . . . . . . . 3 1 1 . . . . . . . . . . . . . FOLLOW 3 | . . . . . . . . 1 . . . . . . . . . . . . 1 1 . . . . . . . . . . . . . . EXPLORE 2 | . . . . . . . . . . . . . . . . . . . . . . . . . . . . . . . 2 . . . . . RETURN 6 | . . . . . . . . . . . . . . . . . . . . 2 . . 1 . . . . . 1 . 2 . . . . . Ally Attacks 505 | . . . . . 32 . . . . 3 . 12 . . . . 148 . 5 15 24 19 12 . . . . 1 6 13 . . . 125 90 . Total Damage 10243 | . . . . . 302 . . . . 158 . 211 . . . . 2807 . 197 359 479 704 403 . . . . 41 208 299 . . . 2285 1790 . Kills 66 | . . . . . 4 . . . . 1 . . . . . . 21 . 1 1 5 3 4 . . . . . 1 1 . . . 15 9 . Allies Corrupted 4 | . . . . . . . . . . . . . . . . . . . . . 2 . 2 . . . . . . . . . . . . . Allies Melted 1 | . . . . . . . . . . . . . . . . . 1 . . . . . . . . . . . . . . . . . . . Intel | -11 -10 -10 -10 -9 -8 -7 -7 -7 -7 -6 -6 -6 -6 -6 -6 -6 -6 -5 -5 -5 -5 -5 -5 -4 -4 -4 -4 -3 -3 -3 -2 -2 -2 -1 -1 -1 ------- Run | Scr Mat Min Exi Min Mat Fac Low Low Dat Pro Fac Was Fac Low Low Zio Dee Pro Fac Ext Cet Arc Hub Fac Upp Upp Zhi Pro Res Tes Res Qua Sec Acc Com Ac0 Robot Analysis Total 9 | . . . . 1 2 . . . . . . . . . . . . . . . . . . . . . 4 . . 1 . . 1 . . . Derelict Logs Recovered 24 | . . 3 . . . . 2 2 . 3 . . . 2 2 3 . 2 . . . . . . 2 3 . . . . . . . . . . Drone Launches 6 | . . . . . . . . . . . . . . . . . . . . 2 . . 1 . . . . . 1 . 2 . . . . . Drone Recoveries 6 | . . . . . . . . . . . . . . . . . . . . 2 . . 1 . . . . . 1 . 2 . . . . . Exploration | -11 -10 -10 -10 -9 -8 -7 -7 -7 -7 -6 -6 -6 -6 -6 -6 -6 -6 -5 -5 -5 -5 -5 -5 -4 -4 -4 -4 -3 -3 -3 -2 -2 -2 -1 -1 -1 ------------- Run | Scr Mat Min Exi Min Mat Fac Low Low Dat Pro Fac Was Fac Low Low Zio Dee Pro Fac Ext Cet Arc Hub Fac Upp Upp Zhi Pro Res Tes Res Qua Sec Acc Com Ac0 Turns Passed 48300 | 58 2043 1293 1297 663 4059 1260 1675 1894 165 2103 1582 114 968 1257 808 1468 2938 2493 423 1183 387 819 357 287 2526 2780 421 2311 619 1906 642 1511 2371 214 1136 269 Spaces Moved 23757 | 34 799 521 541 270 1232 675 786 873 90 1041 831 71 536 777 547 951 1788 950 164 454 103 104 121 131 1273 1123 136 993 245 719 303 766 1206 540 1791 272 Core 23 | 23 . . . . . . . . . . . . . . . . . . . . . . . . . . . . . . . . . . . . Treads 6127 | 11 799 521 541 270 1153 . . . . . . . . . . . . . . . . . . . . . . . 76 719 303 766 968 . . . Legs 7619 | . . . . . . . . . . . . . . . . . . 233 164 454 103 104 121 131 1273 1123 136 993 169 . . . 12 540 1791 272 Wheels 9762 | . . . . . 79 675 786 873 90 1041 831 71 536 777 547 951 1788 717 . . . . . . . . . . . . . . . . . . Hover . | . . . . . . . . . . . . . . . . . . . . . . . . . . . . . . . . . . . . . Flight . | . . . . . . . . . . . . . . . . . . . . . . . . . . . . . . . . . . . . . Fastest Speed 30 | 50 160 240 240 240 165 165 180 195 180 195 130 145 145 130 145 145 100 130 183 183 183 183 183 183 183 183 183 183 170 173 163 155 30 30 30 30 Average Speed 163 | 100 208 240 240 240 273 171 193 195 181 195 147 145 145 144 145 147 141 150 206 183 183 183 183 183 183 185 183 183 180 173 169 158 153 30 30 30 Slowest Speed 330 | 160 240 240 240 240 330 180 195 195 195 195 210 145 145 145 145 160 160 210 210 183 183 183 183 185 183 235 183 183 185 173 173 163 155 30 30 30 Overloaded Moves . | . . . . . . . . . . . . . . . . . . . . . . . . . . . . . . . . . . . . . Propulsion Burnouts . | . . . . . . . . . . . . . . . . . . . . . . . . . . . . . . . . . . . . . Robots Hopped . | . . . . . . . . . . . . . . . . . . . . . . . . . . . . . . . . . . . . . Cave-ins Triggered 1 | . . . . . . . . . . . . . . . . . . . . 1 . . . . . . . . . . . . . . . . Teleports 3 | . . . . . . . . . . . . . . . . . . . . . . . . . . . . . . . . . 1 . 1 1 Microwarps 4 | . . . . . . . . . . . . . . . . . . . . . . . . . . . . . . . . . 4 . . . Exploration Rate (%) 62 | 3 99 99 91 53 85 25 83 95 68 97 28 70 17 91 74 84 83 99 5 64 64 74 25 5 98 99 60 98 8 78 14 81 61 23 82 19 Regions Visited 36 Branch Regions 25 Pre-discovered Areas 12 | . . 2 . . . . . 1 1 . . . . . . . . 1 . . . . . . 2 2 3 . . . . . . . . . Known Exits Taken 27 | . 1 . . . 1 1 1 1 1 1 . . 1 1 1 . 1 1 1 1 1 1 1 1 1 1 1 1 1 1 1 1 1 . . . Unknown Exits Taken 7 | 1 . 1 1 1 . . . . . . . . . . . 1 . . . . . . . . . . . . . . . . . 1 1 . Scrap Searched 35 | . . 1 . . . . 4 4 . 3 . . . 4 2 4 . 5 . . . . . . 2 4 . 2 . . . . . . . . Spaces Dug 395 | . . . . . . 4 . . . . 1 . 8 28 8 3 . . 12 14 . . 151 . 9 2 . 1 7 34 4 16 44 30 19 . Terrain Destroyed 1216 | . . . . . 13 6 . . . 18 5 32 40 47 25 3 4 10 16 27 8 4 299 31 72 45 . 48 12 49 17 25 54 36 122 148 Melee 9 | . . . . . . 4 . . . . 1 . . . . 3 . . . . . . . . . . . . . . . 1 . . . . Projectile 674 | . . . . . . 2 . . . . 4 . 21 5 1 . 4 10 16 27 8 4 14 5 31 45 . 15 12 49 17 24 54 36 122 148 AOE 533 | . . . . . 13 . . . . 18 . 32 19 42 24 . . . . . . . 285 26 41 . . 33 . . . . . . . . Terrain Rammed . | . . . . . . . . . . . . . . . . . . . . . . . . . . . . . . . . . . . . . Walls Destroyed . | . . . . . . . . . . . . . . . . . . . . . . . . . . . . . . . . . . . . . Machines Disabled . | . . . . . . . . . . . . . . . . . . . . . . . . . . . . . . . . . . . . . Actions | -11 -10 -10 -10 -9 -8 -7 -7 -7 -7 -6 -6 -6 -6 -6 -6 -6 -6 -5 -5 -5 -5 -5 -5 -4 -4 -4 -4 -3 -3 -3 -2 -2 -2 -1 -1 -1 --------- Run | Scr Mat Min Exi Min Mat Fac Low Low Dat Pro Fac Was Fac Low Low Zio Dee Pro Fac Ext Cet Arc Hub Fac Upp Upp Zhi Pro Res Tes Res Qua Sec Acc Com Ac0 Total 31730 | 52 1050 543 540 282 1754 747 893 1030 93 1096 1104 75 661 836 556 997 2130 1937 222 731 255 714 231 155 1407 1745 309 1449 399 1292 384 1037 1825 582 2275 342 Wait 5518 | . 144 3 . . 312 10 60 116 . 33 142 . 63 3 1 6 108 903 7 209 106 569 87 8 57 549 156 374 117 467 13 81 497 13 302 2 Move 23498 | 33 798 520 540 269 1231 674 785 872 89 1040 831 70 535 776 546 950 1787 949 163 452 102 103 120 130 1272 1122 135 992 244 718 302 765 983 539 1790 271 Hop . | . . . . . . . . . . . . . . . . . . . . . . . . . . . . . . . . . . . . . Pick Up 327 | 9 19 4 . 4 32 12 2 2 . 2 14 . 4 4 1 8 67 7 10 2 8 5 2 2 9 11 3 8 2 14 11 14 16 3 16 . Fast Attach 167 | 2 4 . . . 12 2 4 . 2 . 13 . 2 . . 4 18 . 3 3 1 3 . . 3 1 3 3 3 6 4 20 21 1 28 1 Attach 93 | 5 . . . . 6 2 . 1 . . 5 . . 2 . 2 7 1 1 . 2 2 . 1 1 . 2 1 . 2 4 7 24 8 7 . Detach 45 | . . . . . . . . . . . 1 . . . . . . 1 2 . . . . . 2 . 1 1 1 1 1 6 19 4 5 . Swap 301 | . 7 . . 1 23 17 6 8 . 6 19 2 7 12 4 5 12 13 4 15 3 1 2 3 11 3 1 11 13 16 14 19 34 2 7 . Drop 476 | . 9 4 . 5 38 13 3 3 2 2 24 . 5 2 1 12 82 14 11 8 8 18 2 1 19 21 7 17 6 19 13 41 27 2 36 1 Fire 1206 | 3 69 12 . 3 100 12 29 28 . 13 54 3 45 37 3 1 40 30 21 36 25 13 18 10 32 38 . 19 13 49 22 81 196 10 74 67 Melee 50 | . . . . . . 5 4 . . . 1 . . . . 9 9 9 . . . . . . 1 . 1 . . . . 3 8 . . . Ram . | . . . . . . . . . . . . . . . . . . . . . . . . . . . . . . . . . . . . . Kick . | . . . . . . . . . . . . . . . . . . . . . . . . . . . . . . . . . . . . . Crush . | . . . . . . . . . . . . . . . . . . . . . . . . . . . . . . . . . . . . . Escape Stasis 16 | . . . . . . . . . . . . . . . . . . . . 6 . . . . . . . . . . . . . . 10 . Rewire 33 | . . . . . . . . . . . . . . . . . . 10 . . . . . . . . . 23 . . . . . . . . Trap . | . . . . . . . . . . . . . . . . . . . . . . . . . . . . . . . . . . . . . Miscellaneous . | . . . . . . . . . . . . . . . . . . . . . . . . . . . . . . . . . . . . . Route ------- -11/Scrapyard -10/Materials (discovered 5 exits: [*Mat x3] / *Min x2) -10/Mines (discovered 3 exits: [*Mat x2] / *Exi) -10/Exiles -9/Mines -8/Materials (discovered 4 exits: *Fac x3 / [*Sto]) -7/Factory (discovered 3 exits: *Fac / *Low x2) -7/Lower Caves -7/Lower Caves (discovered 2 exits: *Fac / *Dat) -7/Data Miner -6/Proximity Caves -6/Factory (discovered 2 exits: *Fac x2) -6/Waste -6/Factory (discovered 2 exits: *Low x2) -6/Lower Caves -6/Lower Caves (discovered 2 exits: *Fac / *Zio) -6/Zion (discovered 2 exits: [*Dee] / *Pro) -6/Deep Caves -5/Proximity Caves -5/Factory (discovered 3 exits: Upp x2 / *Ext) -5/Extension (discovered 2 exits: *Fac / *Cet) -5/Cetus -5/Archives -5/Hub_04(d) -4/Factory (discovered 4 exits: *Res / *Upp x2 / Arm) -4/Upper Caves -4/Upper Caves (discovered 2 exits: *Res / *Zhi) -4/Zhirov -3/Proximity Caves -3/Research (discovered 4 exits: *Res x2 / *Tes x2) -3/Testing -2/Research -2/Quarantine (discovered 2 exits: *Acc / *Sec) -2/Section 7 -1/Access -1/Command (discovered 3 exits: [*Sur x2] / [*Ac0]) -1/Access_0 Near Former Tau Ceti IV History --------- Turn | Location | Event 2 | -11/Scrapyard | Met Revision 17 20 | -11/Scrapyard | Discovered new exit (range 16) 59 | -11/Scrapyard | Entered Materials 301 | -10/Materials | Build established: Mutant 504 | -10/Materials | Discovered new exit (range 11) 658 | -10/Materials | Discovered new exit (range 13) 979 | -10/Materials | Discovered new exit (range 6) 1116 | -10/Materials | Central database locked down 1149 | -10/Materials | Discovered new exit (range 16) 1277 | -10/Materials | Identified exit to Mines 1341 | -10/Materials | Discovered new exit (range 11) 1525 | -10/Materials | Repaired Lgt. Armor Plating 1553 | -10/Materials | Repaired Lgt. Treads 1580 | -10/Materials | Repaired Lgt. Treads 1614 | -10/Materials | Repaired Hvy. Assault Rifle 2102 | -10/Materials | Entered Mines 2154 | -10/Mines | Met a Derelict bent on vengeance 2333 | -10/Mines | Deemed a non-threat by the Exiles lab entrance 2333 | -10/Mines | Discovered new exit (range 5) 2423 | -10/Mines | Learned Materials terminal intel 2490 | -10/Mines | Found a hidden stash of uninstalled traps 2690 | -10/Mines | Discovered new exit (range 10) 2750 | -10/Mines | Found a damaged Exp. Sensor Array with a note attached 2755 | -10/Mines | Found Prototype Device 2876 | -10/Mines | Learned location of Zion (-6) 3167 | -10/Mines | Discovered new exit (range 15) 3395 | -10/Mines | Entered Exiles 3395 | -10/Exiles | Found Exiles lab abandoned 4672 | -10/Exiles | Discovered new exit (range 10) 4692 | -10/Exiles | Entered Mines 4695 | -9/Mines | Assisted by bots powering up and referring to "LRC-V3" 5178 | -9/Mines | Met a Derelict shopkeep closing up shop 5302 | -9/Mines | Discovered new exit (range 5) 5339 | -9/Mines | Assembled infested the area 5355 | -9/Mines | Entered Materials 5355 | -8/Materials | Accompanied by 3 allies 5355 | -8/Materials | Evolved 4 slots: Utility x4 5356 | -8/Materials | Loaded intel: 12 terminal locations 6197 | -8/Materials | Identified Exp. Sensor Array 6351 | -8/Materials | Build established: Scavenger-Mutant 7068 | -8/Materials | Discovered new exit (range 5) 7255 | -8/Materials | Identified exit to Factory 7255 | -8/Materials | Central database locked down 7255 | -8/Materials | Discovered new exit (range 7) 7408 | -8/Materials | Repaired Imp. Medium Armor Plating 7469 | -8/Materials | Repaired Enh. Autogun 7547 | -8/Materials | Build established: Hacker-Mutant 9232 | -8/Materials | Build established: Scavenger-Mutant 9414 | -8/Materials | Entered Factory 9414 | -7/Factory | Evolved 2 slots: Utility x2 10245 | -7/Factory | Discovered new exit (range 15) 10269 | -7/Factory | Identified exit to Factory 10458 | -7/Factory | Identified exit to Lower Caves 10657 | -7/Factory | Cargo convoy interrupted 10674 | -7/Factory | Entered Lower Caves 10674 | -7/Lower Caves | Accompanied by 1 ally 10675 | -7/Lower Caves | Encountered a Warlord checkpoint 10709 | -7/Lower Caves | Learned location of 1 exit from Proximity Caves 10757 | -7/Lower Caves | Build established: Skirmisher 11169 | -7/Lower Caves | Build established: Mutant 11655 | -7/Lower Caves | Identified exit to Lower Caves 11735 | -7/Lower Caves | Build established: Skirmisher 12349 | -7/Lower Caves | Entered another Lower Caves area 12349 | -7/Lower Caves | Accompanied by 1 ally 12394 | -7/Lower Caves | Discovered exit to Factory (range 6) 13206 | -7/Lower Caves | Encountered a Warlord checkpoint 13366 | -7/Lower Caves | Spotted B-75 Beast 13963 | -7/Lower Caves | Discovered new exit (range 9) 13976 | -7/Lower Caves | Identified exit to Data Miner 14243 | -7/Lower Caves | Entered Data Miner 14243 | -7/Data Miner | Accompanied by 1 ally 14245 | -7/Data Miner | Discovered new exit (range 6) 14279 | -7/Data Miner | Met Data Miner 14320 | -7/Data Miner | Learned location of Section 7 (-2) 14320 | -7/Data Miner | Acquired the access code to Warlord's prototype stash 14342 | -7/Data Miner | Received God Mode back door access code from Data Miner 14406 | -7/Data Miner | Identified exit to Proximity Caves 14408 | -7/Data Miner | Entered Proximity Caves 14408 | -6/Proximity Caves | Accompanied by 1 ally 14594 | -6/Proximity Caves | P-60 Hacker assimilated allied Technician 4a 14607 | -6/Proximity Caves | Escorted by Enhanced Grunt 14841 | -6/Proximity Caves | Learned 4 Factory zone layouts 15372 | -6/Proximity Caves | Learned Factory non-interactive machine intel 16511 | -6/Proximity Caves | Entered Factory 16511 | -6/Factory | Evolved 2 slots: Power x1, Utility x1 16513 | -6/Factory | Loaded intel: 185 non-interactive machine locations 16809 | -6/Factory | Build established: Infiltrator-Skirmisher 16946 | -6/Factory | Lost 3 parts (2p1u) 17185 | -6/Factory | Repaired Hrd. Heavy Armor Plating 17526 | -6/Factory | Discovered new exit (range 12) 17544 | -6/Factory | Identified exit to Factory 17615 | -6/Factory | Discovered exit to Factory (range 7) 18093 | -6/Factory | Sucked down chute 18093 | -6/Factory | Entered Waste 18094 | -6/Waste | Met a frightened Derelict 18108 | -6/Waste | EMP discharged 18108 | -6/Waste | System corruption reached 10% 18112 | -6/Waste | Spotted C-40 Crusher 18126 | -6/Waste | Spotted C-40 Crusher 18126 | -6/Waste | Spotted C-40 Crusher 18159 | -6/Waste | Spotted C-40 Crusher 18169 | -6/Waste | Spotted C-40 Crusher 18192 | -6/Waste | Spotted C-40 Crusher 18194 | -6/Waste | Discovered new exit (range 10) 18206 | -6/Waste | Identified exit to Factory 18207 | -6/Waste | Entered Factory 18862 | -6/Factory | Identified exit to Lower Caves 18886 | -6/Factory | Build established: Infiltrator-Mutant 19175 | -6/Factory | Entered Lower Caves 19193 | -6/Lower Caves | Found Prototype Device 19212 | -6/Lower Caves | Encountered a Warlord checkpoint 19499 | -6/Lower Caves | Attracted the attention of an 0b10 checkpoint 19820 | -6/Lower Caves | Build established: Skirmisher 20195 | -6/Lower Caves | Discovered new exit (range 16) 20208 | -6/Lower Caves | Destroyed 8 combat bots 20337 | -6/Lower Caves | Learned Factory terminal intel 20430 | -6/Lower Caves | Identified exit to Lower Caves 20432 | -6/Lower Caves | Entered another Lower Caves area 20542 | -6/Lower Caves | Discovered exit to Factory (range 15) 20796 | -6/Lower Caves | Learned 4 Factory zone layouts 21047 | -6/Lower Caves | Learned 12 Factory zone layouts 21221 | -6/Lower Caves | Discovered new exit (range 8) 21238 | -6/Lower Caves | Identified exit to Zion 21240 | -6/Lower Caves | Entered Zion 21310 | -6/Zion | System corruption cleaned by Quarantine Array 21427 | -6/Zion | Discovered new exit (range 12) 21442 | -6/Zion | Identified exit to Proximity Caves 21684 | -6/Zion | Build established: Mutant 21692 | -6/Zion | Found CR-A16's Pointy Stick 21729 | -6/Zion | Given the Hacking Drone Bay 21729 | -6/Zion | Found Prototype Device 21729 | -6/Zion | Identified Hacking Drone Bay 21854 | -6/Zion | Found Prototype Device 21855 | -6/Zion | Identified Phasing AFG 21941 | -6/Zion | Discovered new exit (range 4) 22017 | -6/Zion | Learned Factory terminal intel 22158 | -6/Zion | Given A8's code to call for help 22270 | -6/Zion | Gained Derelict followers 22595 | -6/Zion | Enhanced Grunt warped into view, answering call for help 22596 | -6/Zion | Enhanced Grunt warped into view, answering call for help 22643 | -6/Zion | Found Prototype Energy Gun 22696 | -6/Zion | Saw the warning signs outside the Deep Caves entrance 22708 | -6/Zion | Entered Deep Caves 22708 | -6/Deep Caves | Accompanied by 6 allies 23047 | -6/Deep Caves | Z-Facility disabled 23049 | -6/Deep Caves | Attacked by Z-Imprinter 23081 | -6/Deep Caves | Allies destroyed Z-Imprinter 23118 | -6/Deep Caves | Found Prototype Protection 23118 | -6/Deep Caves | Identified Zio. Weapon Casing 23175 | -6/Deep Caves | Found Zio. Weapon Casing 23305 | -6/Deep Caves | Found Zio. Weapon Casing 23321 | -6/Deep Caves | Found Zio. Weapon Casing 23328 | -6/Deep Caves | Found Zio. Weapon Casing 23359 | -6/Deep Caves | Found Prototype Protection 23369 | -6/Deep Caves | Found Prototype Protection 23374 | -6/Deep Caves | Identified Zio. Heavy Carapace (x2) 23375 | -6/Deep Caves | Found Zio. Weapon Casing 23383 | -6/Deep Caves | Found Zio. Weapon Casing 23403 | -6/Deep Caves | Build established: Scavenger-Mutant 23555 | -6/Deep Caves | Discovered new exit (range 7) 23938 | -6/Deep Caves | Identified Storm Laser 24734 | -6/Deep Caves | Spotted as-09298 24742 | -6/Deep Caves | Destroyed as-09298 24795 | -6/Deep Caves | Spotted as-41453 24800 | -6/Deep Caves | Core integrity fell below 50% 24806 | -6/Deep Caves | Destroyed as-41453 24842 | -6/Deep Caves | Triggered Deep Caves wall 24842 | -6/Deep Caves | Spotted AS-17521 24842 | -6/Deep Caves | Spotted AS-96226 24856 | -6/Deep Caves | Destroyed AS-96226 24871 | -6/Deep Caves | Destroyed AS-17521 24895 | -6/Deep Caves | Destroyed 34 combat bots 24901 | -6/Deep Caves | Found Prototype Slashing Weapon 24902 | -6/Deep Caves | Identified Longsword +1 24991 | -6/Deep Caves | Exposed GOLEM chamber 24994 | -6/Deep Caves | Found Unknown Device 24994 | -6/Deep Caves | Identified GOLEM Unit 25019 | -6/Deep Caves | Found GOLEM Unit 25044 | -6/Deep Caves | Found GOLEM Unit 25133 | -6/Deep Caves | Found GOLEM Unit 25141 | -6/Deep Caves | Found GOLEM Unit 25235 | -6/Deep Caves | Identified exit to Proximity Caves 25293 | -6/Deep Caves | Build established: Golem 25646 | -6/Deep Caves | Entered Proximity Caves 25646 | -5/Proximity Caves | Accompanied by 1 ally 26073 | -5/Proximity Caves | Attracted the attention of an 0b10 checkpoint 26581 | -5/Proximity Caves | Learned Factory security intel 26611 | -5/Proximity Caves | Spotted B-75 Beast 26649 | -5/Proximity Caves | Revealed the true nature of CR-A16's Pointy Stick 26653 | -5/Proximity Caves | Destroyed B-75 Beast 28139 | -5/Proximity Caves | Entered Factory 28139 | -5/Factory | Accompanied by 1 ally 28139 | -5/Factory | Evolved 2 slots: Propulsion x1, Utility x1 28140 | -5/Factory | Identified exit to Upper Caves 28140 | -5/Factory | Identified exit to Extension 28143 | -5/Factory | Loaded intel: 27 terminal locations 28562 | -5/Factory | Entered Extension 28562 | -5/Extension | Accompanied by 1 ally 28709 | -5/Extension | Rescued a captive Derelict 28710 | -5/Extension | Rescued a captive Derelict 28907 | -5/Extension | P-70 Sage assimilated allied 1S-VW8(l) 29108 | -5/Extension | Rescued a captive Derelict 29109 | -5/Extension | Rescued a captive Derelict 29156 | -5/Extension | Crushed by falling debris 29442 | -5/Extension | Rescued A7 29521 | -5/Extension | Rescued a captive Derelict 29535 | -5/Extension | Rescued a captive Derelict 29564 | -5/Extension | Discovered new exit (range 10) 29566 | -5/Extension | Discovered new exit (range 6) 29575 | -5/Extension | Identified exit to Cetus 29745 | -5/Extension | Entered Cetus 29745 | -5/Cetus | Accompanied by 3 allies (A7) 29750 | -5/Cetus | Acquired a Cetus Manufacturing Module code from A7 29772 | -5/Cetus | Spotted Cetus Guard 29772 | -5/Cetus | Spotted Cetus Guard 29779 | -5/Cetus | Allies destroyed Cetus Guard 29779 | -5/Cetus | Spotted Cetus Guard 29784 | -5/Cetus | Spotted Cetus Guard 29804 | -5/Cetus | Destroyed Cetus Guard 29812 | -5/Cetus | Destroyed Cetus Guard 29834 | -5/Cetus | Destroyed Cetus Guard 29861 | -5/Cetus | Destroyed 7 combat bots 29950 | -5/Cetus | Started Cetus Manufacturing Module 29966 | -5/Cetus | Escorted A7 to Cetus Mainframe 29975 | -5/Cetus | Manufactured an Enhanced Grunt 29987 | -5/Cetus | Discovered new exit (range 16) 30000 | -5/Cetus | Manufactured an Enhanced Grunt 30013 | -5/Cetus | Identified exit to Archives 30025 | -5/Cetus | Manufactured an Enhanced Grunt 30050 | -5/Cetus | Manufactured an Enhanced Grunt 30075 | -5/Cetus | Manufactured an Enhanced Grunt 30132 | -5/Cetus | Entered Archives 30132 | -5/Archives | Accompanied by 4 allies (A7) 30137 | -5/Archives | Received a hacking code to weaken MAIN.C 30296 | -5/Archives | Discovered new exit (range 16) 30323 | -5/Archives | Identified exit to Hub_04(d) 30951 | -5/Archives | Entered Hub_04(d) 30951 | -5/Hub_04(d) | Accompanied by 3 allies 31249 | -5/Hub_04(d) | Discovered new exit (range 7) 31264 | -5/Hub_04(d) | Identified exit to Factory 31300 | -5/Hub_04(d) | Network Hub disabled 31305 | -5/Hub_04(d) | Network Hub disabled 31308 | -5/Hub_04(d) | Entered Factory 31308 | -4/Factory | Evolved 2 slots: Propulsion x1, Weapon x1 31309 | -4/Factory | Loaded intel: 26 terminal locations 31321 | -4/Factory | Identified exit to Upper Caves 31321 | -4/Factory | Identified exit to Armory 31375 | -4/Factory | Discovered new exit (range 13) 31406 | -4/Factory | Identified exit to Research 31595 | -4/Factory | Entered Upper Caves 33156 | -4/Upper Caves | Learned Research interactive machine intel 33213 | -4/Upper Caves | Ambushed by wild Derelicts 33278 | -4/Upper Caves | Discovered new exit (range 11) 33298 | -4/Upper Caves | Identified exit to Upper Caves 33391 | -4/Upper Caves | Learned location of Testing (-3) 33600 | -4/Upper Caves | Spotted B-86 Titan 33605 | -4/Upper Caves | Destroyed B-86 Titan 33614 | -4/Upper Caves | Found Hvy. Reflective Plating 33844 | -4/Upper Caves | Destroyed 7 combat bots 33882 | -4/Upper Caves | Learned Factory garrison access intel 33882 | -4/Upper Caves | Learned Factory terminal intel 33882 | -4/Upper Caves | Learned Factory stockpile data 34121 | -4/Upper Caves | Entered another Upper Caves area 34193 | -4/Upper Caves | Discovered exit to Research (range 15) 34504 | -4/Upper Caves | Attracted the attention of an 0b10 base 34557 | -4/Upper Caves | Learned Extension garrison access intel 34557 | -4/Upper Caves | Learned Factory terminal intel 34557 | -4/Upper Caves | Learned Research security intel 34557 | -4/Upper Caves | Learned Factory stockpile data 34815 | -4/Upper Caves | Encountered a Warlord checkpoint 35145 | -4/Upper Caves | Discovered new exit (range 8) 35381 | -4/Upper Caves | Learned Factory trap positions 35381 | -4/Upper Caves | Learned Extension security intel 35381 | -4/Upper Caves | Learned Research garrison access intel 35726 | -4/Upper Caves | Learned Research stockpile data 35736 | -4/Upper Caves | Learned location of 1 exit from Research 35774 | -4/Upper Caves | Learned Research stockpile data 36899 | -4/Upper Caves | Identified exit to Zhirov 36901 | -4/Upper Caves | Entered Zhirov 36903 | -4/Zhirov | Discovered new exit (range 3) 36905 | -4/Zhirov | Identified exit to Proximity Caves 36936 | -4/Zhirov | Met Zhirov 36976 | -4/Zhirov | Learned location of Quarantine (-2) 36976 | -4/Zhirov | Learned location of Command (-1) 36987 | -4/Zhirov | Zhirov requested help retrieving the SGEMP Prototype 37019 | -4/Zhirov | Found Alien Artifact 37019 | -4/Zhirov | Identified Integrated Reactor 37019 | -4/Zhirov | Installed Integrated Reactor, increased core energy generation (+10) 37045 | -4/Zhirov | Found Alien Artifact 37322 | -4/Zhirov | Entered Proximity Caves 37738 | -3/Proximity Caves | Received a Behemoth hack from an annoying Tinkerer 37915 | -3/Proximity Caves | Destroyed 12 combat bots 38500 | -3/Proximity Caves | Found Alien Artifact 38937 | -3/Proximity Caves | Discovered exit to Research (range 9) 39633 | -3/Proximity Caves | Entered Research 39633 | -3/Research | Accompanied by 2 allies 39633 | -3/Research | Evolved 2 slots: Propulsion x2 39634 | -3/Research | Identified exit to Research 39637 | -3/Research | Loaded intel: 40 interactive machine locations 39638 | -3/Research | Loaded intel: 3 garrison access locations 39889 | -3/Research | Identified exit to Testing 40132 | -3/Research | Found Gamma Bomb Array 40145 | -3/Research | Discovered exit to Research (range 14) 40252 | -3/Research | Entered Testing 40359 | -3/Testing | Found Prototype Energy Cannon 40359 | -3/Testing | Identified Null Cannon 40523 | -3/Testing | Found Prototype Hackware 40531 | -3/Testing | Identified Exp. System Shield 40890 | -3/Testing | Found Prototype Device 40910 | -3/Testing | Identified Exp. Thermal Shield 41268 | -3/Testing | Build established: Tank 41464 | -3/Testing | Allied Derelicts emerged from ambush trap array 41573 | -3/Testing | Repaired Centrium Medium Armor Plating 41830 | -3/Testing | Incoming assault squad redirected 42158 | -3/Testing | Entered Research 42158 | -2/Research | Evolved 2 slots: Power x1, Utility x1 42754 | -2/Research | Discovered new exit (range 15) 42780 | -2/Research | Identified exit to Quarantine 42800 | -2/Research | Entered Quarantine 42859 | -2/Quarantine | Cryocooling Duct disabled 42874 | -2/Quarantine | Ambient heat levels rising (+20) 42874 | -2/Quarantine | Non-combat units ordered to evacuate 42916 | -2/Quarantine | Found Alien Energy Cannon 42997 | -2/Quarantine | Found Alien Artifact 43023 | -2/Quarantine | Identified Transdimensional Reconstructor 43023 | -2/Quarantine | Identified Dimensional Node Initializer 43023 | -2/Quarantine | Identified Core Cannon 43023 | -2/Quarantine | Identified Phase Redirector 43058 | -2/Quarantine | Found Alien Slashing Weapon 43128 | -2/Quarantine | Identified Sigix Broadsword 43136 | -2/Quarantine | Found Quantum Capacitor 43212 | -2/Quarantine | Incoming investigation squad redirected 43225 | -2/Quarantine | Found Alien Artifact 43364 | -2/Quarantine | Discovered new exit (range 22) 43423 | -2/Quarantine | Found Alien Artifact 43483 | -2/Quarantine | Identified exit to Access 43625 | -2/Quarantine | Build established: Generator-Assassin 43712 | -2/Quarantine | Found Alien Artifact 43713 | -2/Quarantine | Identified Phase Armor 43778 | -2/Quarantine | Found Alien Artifact 43807 | -2/Quarantine | Spotted Alpha 7 43992 | -2/Quarantine | Found Alien Artifact 44018 | -2/Quarantine | Found Alien Impact Weapon 44020 | -2/Quarantine | Identified Core Stripper 44067 | -2/Quarantine | Spotted Fortress 44073 | -2/Quarantine | Destroyed Fortress 44134 | -2/Quarantine | Found Prototype Device 44134 | -2/Quarantine | Identified Exp. Force Field 44137 | -2/Quarantine | Found Prototype Device 44137 | -2/Quarantine | Identified Thermal Barrier 44150 | -2/Quarantine | Found Prototype Reactor 44150 | -2/Quarantine | Identified Vortex Chain Reactor 44153 | -2/Quarantine | Found Vortex Chain Reactor 44158 | -2/Quarantine | Found Prototype Device 44158 | -2/Quarantine | Identified Exp. EM Disruption Field 44167 | -2/Quarantine | Found Prototype Protection 44167 | -2/Quarantine | Identified Centrium Heavy Armor Plating 44217 | -2/Quarantine | Build established: Generator-Mutant 44305 | -2/Quarantine | Discovered new exit (range 5) 44309 | -2/Quarantine | Identified exit to Section 7 44311 | -2/Quarantine | Entered Section 7 44356 | -2/Section 7 | Found Alien Artifact 44356 | -2/Section 7 | Identified Core Membrane 44356 | -2/Section 7 | Installed Core Membrane, gained immunity to corruption 44361 | -2/Section 7 | Identified Core Reset Matrix 44361 | -2/Section 7 | Identified Hpw. Transdimensional Reconstructor 44361 | -2/Section 7 | Identified Subatomic Replicator 44361 | -2/Section 7 | Used Core Reset Matrix 44365 | -2/Section 7 | Sensed 22 artifacts in vicinity 44520 | -2/Section 7 | Spotted S7 Guard 44524 | -2/Section 7 | Found Integrated Thermoelectric Network 44524 | -2/Section 7 | Installed Integrated Thermoelectric Network, gained heat-energy exchange potential 44703 | -2/Section 7 | Found Core Regenerator 44791 | -2/Section 7 | Spotted S7 Guard 44862 | -2/Section 7 | Found Prototype Device 44862 | -2/Section 7 | Identified Exp. Focal Shield 45518 | -2/Section 7 | Destroyed 8 combat bots 45543 | -2/Section 7 | Found Microwarp Drive 45592 | -2/Section 7 | First assault squad dispatched 45619 | -2/Section 7 | Incoming assault squad redirected 45635 | -2/Section 7 | Destroyed 7 combat bots 45649 | -2/Section 7 | Discovered exit to Access (range 14) 45696 | -2/Section 7 | Spotted B-90 Cyclops 45704 | -2/Section 7 | Destroyed B-90 Cyclops 45724 | -2/Section 7 | Initialized slip node 45828 | -2/Section 7 | Incoming assault squad redirected 46222 | -2/Section 7 | Found LRC Matter Compressor 46222 | -2/Section 7 | Installed LRC Matter Compressor, increased matter storage capacity (+125) 46349 | -2/Section 7 | Spotted B-99 Colossus 46377 | -2/Section 7 | Incoming assault squad redirected 46380 | -2/Section 7 | Incoming assault squad redirected 46384 | -2/Section 7 | Destroyed B-99 Colossus 46485 | -2/Section 7 | Build established: Alien-Mutant 46560 | -2/Section 7 | Found Sigix Sheargun 46563 | -2/Section 7 | Found Sigix Sheargun 46603 | -2/Section 7 | Core integrity fell below 50% 46612 | -2/Section 7 | Spotted Executioner 46635 | -2/Section 7 | Spotted Executioner 46639 | -2/Section 7 | Destroyed Executioner 46642 | -2/Section 7 | Core integrity fell below 20% 46642 | -2/Section 7 | Destroyed Executioner 46672 | -2/Section 7 | Integrated with Sigix Exoskeleton 46679 | -2/Section 7 | Warped through subspace to slip node 46682 | -2/Section 7 | Entered Access 46682 | -1/Access | Evolved 2 slots: Weapon x2 46687 | -1/Access | Emitted hypermatrix ping 46692 | -1/Access | Assembled emerged from beneath the floor 46745 | -1/Access | Assembled emerged from beneath the floor 46777 | -1/Access | Assembled emerged from beneath the floor 46791 | -1/Access | Assembled emerged from beneath the floor 46877 | -1/Access | Assembled emerged from beneath the floor 46881 | -1/Access | Discovered new exit (range 18) 46896 | -1/Access | Entered Command 46901 | -1/Command | Emitted hypermatrix ping 46906 | -1/Command | Assembled emerged from beneath the floor 46922 | -1/Command | Assembled emerged from beneath the floor 46951 | -1/Command | Build established: Alien-Sigix 46979 | -1/Command | Assembled emerged from beneath the floor 47067 | -1/Command | Spotted Combat Programmer 47068 | -1/Command | Destroyed Combat Programmer 47068 | -1/Command | Spotted Combat Programmer 47078 | -1/Command | Destroyed Combat Programmer 47081 | -1/Command | Spotted M Guard 47081 | -1/Command | Spotted M Guard 47119 | -1/Command | Destroyed M Guard 47124 | -1/Command | Destroyed M Guard 47124 | -1/Command | All MAIN.C guards destroyed 47128 | -1/Command | Spotted B-99 Colossus 47146 | -1/Command | Sigix Exoskeleton integrity reduced to 80% 47146 | -1/Command | First assault squad dispatched 47150 | -1/Command | Destroyed B-99 Colossus 47155 | -1/Command | Found Prototype Reactor 47155 | -1/Command | Identified Zero-point Reactor 47158 | -1/Command | Found Prototype Processor 47158 | -1/Command | Identified Exp. Targeting Computer 47160 | -1/Command | Found Prototype Device 47160 | -1/Command | Identified AEGIS Remote Shield 47164 | -1/Command | Found Exp. Targeting Computer 47177 | -1/Command | Met MAIN.C 47180 | -1/Command | 0b10 Conduit disabled 47206 | -1/Command | MAIN.C's shell transforms into a squad of autonomous robots 47206 | -1/Command | Destroyed MAIN.C Shell 47206 | -1/Command | Spotted M Shell/Atk 47206 | -1/Command | Spotted M Shell/Def 47206 | -1/Command | Spotted M Shell/Atk 47206 | -1/Command | Spotted M Shell/Atk 47206 | -1/Command | Spotted M Shell/Def 47206 | -1/Command | Spotted M Shell/Def 47206 | -1/Command | Spotted M Shell/Def 47209 | -1/Command | MAIN.C activated Command garrisons 47209 | -1/Command | Spotted M Shell/Atk 47220 | -1/Command | Discovered new exit (range 17) 47249 | -1/Command | Sigix Exoskeleton integrity reduced to 60% 47271 | -1/Command | Destroyed MAIN.C 47280 | -1/Command | Found Prototype Device 47280 | -1/Command | Identified Exp. Phase Shifter 47282 | -1/Command | Found Prototype Device 47282 | -1/Command | Identified Exp. System Purifier 47287 | -1/Command | Discovered new exit (range 41) 47287 | -1/Command | Discovered new exit (range 110) 47287 | -1/Command | Extracted map data and part IDs from MAIN.C's data core 47289 | -1/Command | Found AEGIS Remote Shield 47292 | -1/Command | Found Zero-point Reactor 47401 | -1/Command | Found Adv. Powered Armor 47482 | -1/Command | Phase Generator disabled 47702 | -1/Command | Assembled emerged from beneath the floor 47749 | -1/Command | Assembled emerged from beneath the floor 47909 | -1/Command | Assembled emerged from beneath the floor 47927 | -1/Command | Assembled emerged from beneath the floor 48006 | -1/Command | Found Exp. Core Analyzer 48017 | -1/Command | Found Exp. Targeting Computer 48020 | -1/Command | Found Exp. Core Analyzer 48024 | -1/Command | Warped through subspace to slip node 48024 | -1/Command | Discovered new exit (range 5) 48032 | -1/Command | Entered Access_0 48033 | -1/Access_0 | Sensed 4 artifacts in vicinity 48035 | -1/Access_0 | Met Architect 48043 | -1/Access_0 | Destroyed A8 48053 | -1/Access_0 | Core integrity fell below 50% 48055 | -1/Access_0 | Architect warped through subspace 48087 | -1/Access_0 | Architect warped through subspace 48116 | -1/Access_0 | Architect warped through subspace 48138 | -1/Access_0 | Architect warped through subspace 48144 | -1/Access_0 | Subspace Access Node disabled 48154 | -1/Access_0 | Subspace Access Node disabled 48162 | -1/Access_0 | Architect warped through subspace 48174 | -1/Access_0 | A6 warped into view 48180 | -1/Access_0 | Subspace Access Node disabled 48192 | -1/Access_0 | Subspace Access Node disabled 48254 | -1/Access_0 | Sigix Exoskeleton integrity reduced to 40% 48267 | -1/Access_0 | Core integrity fell below 20% 48268 | -1/Access_0 | Destroyed A6 48294 | -1/Access_0 | Destroyed Architect 48295 | -1/Access_0 | Architect triggered a singularity event 48297 | -1/Access_0 | Extracted unknown sensor trigger ID from Architect's data core 48298 | -1/Access_0 | Found Hpw. Transdimensional Reconstructor 48298 | -1/Access_0 | Warped through subspace to slip node 48298 | -1/Access_0 | Discovered new exit (range 8) 48301 | *** | Escaped singularity! Last Messages --------------- 48292_ Quantum Shear penetrates Architect. 48293_ Penetrated by Quantum Shear. 48294_ Quantum Shear penetrates Architect. 48294_ Architect: "If I can't win, no one wins!" 48294_ Architect destroyed. 48294_ Switching to secondary target: Enhanced Grunt. 48294_ Quantum Shear penetrates Enhanced Grunt. 48295_ A0_COM: Initiating irreversible singularity event. Goodbye. 48296_ A0_COM: 10. 48297_ A0_COM: 9. 48297_ Acquired data core, extracted unknown sensor trigger ID. 48298_ A0_COM: 8. 48298_ Discarded Exp. Targeting Computer. 48298_ Acquired Hpw. Transdimensional Reconstructor. 48298_ Warped through subspace, drawn to slip node. 48298_ EXIT=FOUND 48299_ A0_COM: 7. 48300_ A0_COM: 6. 48301_ A0_COM: 5. [Achievement: Planet Killer] Map ----- +----------------------------------------------------+ | | | | | | | | | | | | | | | | | | | | | | | | | | | | | | | | | ????????????#########################????????????? | | ???????????###########################???????????? | | ??????????#############################??????????? | | ??????????#############################??????????? | | ?????????###############################?????????? | | ????????#################################????????? | | ????????#################################????????? | | ????????################# ###############????????? | | ???????################# ###############???????? | | ???????################# X ###############???????? | | ???????################# ###############???????? | | ???????################ ###############???????? | | ???????################ ################???????? | | ??????################## ################??????? | | ???????################ ###############???????? | | ???????################ ################???????? | | ??????################# < ################??????? | | ???????################ ################???????? | | ???????################# ################???????? | | ???????###################################???????? | | ???????###################################???????? | | ???????###################################???????? | | ????????#################################????????? | | ????????#################################????????? | | ????????#################################????????? | | ?????????###############################?????????? | | ??????????#############################??????????? | | ??????????#############################??????????? | | ???????????###########################???????????? | | ????????????#########################????????????? | | ?????????????#######################?????????????? | | ???????????????###################???????????????? | | ????????????????#################????????????????? | | ???????????????????###########???????????????????? | +----------------------------------------------------+ Best States ------------- Heat Dissipation 139 Coolant Potential 65 Energy Generation 85 Energy Capacity 1940 Matter Stores 425 Matter Capacity 600 Sight Range 16 Robot Scan Range 20 Terrain Scan Range 24 Terrain Scan Density 210 Jamming Range 14 Additional Mass Support 20 Corruption Containment 8 Armor Coverage 1800 Resistance: KI 50 Resistance: TH 50 Resistance: EX 50 Resistance: EM 75 Resistance: I 50 Resistance: S 50 Resistance: P 50 Weapon Shielding 100 Phase Shifting 8 Evasion (%) 79 Targeting Accuracy 24 Core Analysis 8 Armor Integrity Analysis 30 Recoil Reduction 6 Matter Filtering 30 Energy Filtering 30 Particle Charging 25 Salvage Targeting 2 Offensive Hacking 20 Defensive Hacking 16 Authchip Count 1 Item Schematics ----------------- Helical Railgun | -2/Section 7 | Archive Hdn. Centrium Leg | -2/Section 7 | Archive Hdn. Centrium Wheel | -2/Section 7 | Archive Hvy. Dispersion Rifle | -2/Section 7 | Archive Plasma Lance | -2/Section 7 | Archive Robot Schematics ------------------ None Fabricated ------------ Nothing Alien Tech Used ----------------- Integrated Reactor Sigix Broadsword Phase Armor Core Stripper Core Membrane Core Reset Matrix Integrated Thermoelectric Network Dimensional Node Initializer Core Cannon Microwarp Drive LRC Matter Compressor Sigix Exoskeleton Sigix Sheargun Transdimensional Reconstructor High-powered Transdimensional Reconstructor Achievements -------------- Planet Killer Challenges ------------ None Game ------ Seed GravitonMappingMallet Manual? 0 Play Time 11:23:26 Cumulative 236.6 hours Start 2022.07.18 @ 06:42:48 End 2022.07.23 @ 16:02:25 Sessions 69 Manual Loads 0 Difficulty Rogue Special Mode None Game No. 36 Rogue 29 Adventurer 1 Explorer 6 Win Type 6 Total 14 Types 5/1/5/0/0/1/1/0/1 Lore% 80 Gallery% 82 Achievement% 67 Wizard Run 0 Options --------- ASCII 0 Keyboard 0 Movement Mouse Keybinds 0 Fullscreen 1 Font 18/SmallcapsGlow Map View 76x50 Tactical HUD 1 Map Filters NONE Filters NONE Steam 1 RUN: 96266d46-0e02-4d14-8327-fb1ca18ae2d6